Workbook

Sheet Calcoli
C2: C A L C O L I P E R U S O V I S U A L E
C5: SCOPO DEL FOGLIO ELETTRONICO
C6: Con questo foglio elettronico è possibile calcolare, in base al telescopio usato, tutte le caratteristiche di ogni oculare, dagli ingrandimenti ottenuti al tempo di attraversamento di un oggetto nel campo inquadrato. Viene calcolata anche la magnitudine teorica massima raggiungibile in base al cielo ed al telescopio. Celle Gialle: inserimento dati, celle grige: risultati delle formule
C11: TELESCOPIO IMPIEGATO | M11: Apertura telescopio [mm] | Q11: Focale telescopio [mm] | U11: Rapporto focale [f/#] | AD11: Utilizzo di una lente di Barlow o riduttori di focale [SI/NO]
C14: Celestron C9¼ | M14: =VLOOKUP($C$14,Telescopi!A:E,3,FALSE) -> 235 | Q14: =VLOOKUP($C$14,Telescopi!A:E,4,FALSE)*IF(AD14="NO",1,AN14) -> 2350 | U14: =$Q$14/$M$14 -> 10 | AD14: NO | AH14: Moltiplica | AN14: 0.5
AD15: SI | AF15: NO
C16: DATI OCULARI: | AD16: RISULTATI
C17: MARCA E MODELLO | M17: Focale oculare [mm] | Q17: Estrazione pupillare [mm] | U17: Campo apparente [gradi] | Y17: Field Stop [mm] | AD17: Ingrand. | AH17: Pupilla uscita [mm] | AK17: Campo reale [gradi] | AN17: Tempo attraver. [sec]
C20: VIXEN LV-W | M20: 42 | Q20: 20 | U20: 68 | Y20: =IF(U20="","",(U20*M20/57.3)) -> 49.84293194 | AD20: =IF(OR($Q$14=0,C20="",M20="",Q20="",U20=""),"",$Q$14/M20) -> 55.95238095 | AH20: =IF(OR($M$14=0,$Q$14=0,AD20=""),"",IF($AD$14="NO",M20/$U$14,M20/$AN$14/$U$14)) -> 4.2 | AK20: =IF(AH20="","",IF(U20/AD20>$AL$37,$AL$37,U20/AD20)) -> 1.215319149 | AN20: =IF($AK20="","",$AK20/(360/(60*60*24))) -> 291.6765957
C21: VIXEN LV-W | M21: 22 | Q21: 20 | U21: 65 | Y21: 24.95636998 | AD21: 106.8181818 | AH21: 2.2 | AK21: 0.6085106383 | AN21: 146.0425532
C22: VIXEN LV-W | M22: 17 | Q22: 20 | U22: 65 | Y22: 19.28446771 | AD22: 138.2352941 | AH22: 1.7 | AK22: 0.470212766 | AN22: 112.8510638
C23: VIXEN LV-W | M23: 13 | Q23: 20 | U23: 65 | Y23: 14.7469459 | AD23: 180.7692308 | AH23: 1.3 | AK23: 0.3595744681 | AN23: 86.29787234
C24: VIXEN LV-W | M24: 8 | Q24: 20 | U24: 65 | Y24: 9.07504363 | AD24: 293.75 | AH24: 0.8 | AK24: 0.2212765957 | AN24: 53.10638298
C25: VIXEN LV-W | M25: 5 | Q25: 20 | U25: 65 | Y25: 5.671902269 | AD25: 470 | AH25: 0.5 | AK25: 0.1382978723 | AN25: 33.19148936
C26: Meade Plössl 3000 II | M26: 25 | Q26: =M26*35% -> 8.75 | U26: 50 | Y26: =IF(U26="","",(U26*M26/57.3)) -> 21.81500873 | AD26: =IF(OR($Q$14=0,C26="",M26="",Q26="",U26=""),"",$Q$14/M26) -> 94 | AH26: =IF(OR($M$14=0,$Q$14=0,AD26=""),"",IF($AD$14="NO",M26/$U$14,M26/$AN$14/$U$14)) -> 2.5 | AK26: =IF(AH26="","",IF(U26/AD26>$AL$37,$AL$37,U26/AD26)) -> 0.5319148936 | AN26: 127.6595745
C27: Meade Plössl 3000 II | M27: 16 | Q27: =M27*35% -> 5.6 | U27: 50 | Y27: 13.96160558 | AD27: 146.875 | AH27: 1.6 | AK27: 0.3404255319 | AN27: 81.70212766
C28: Meade Plössl 3000 II | M28: 9.5 | Q28: =M28*35% -> 3.325 | U28: 50 | Y28: 8.289703316 | AD28: 247.3684211 | AH28: 0.95 | AK28: 0.2021276596 | AN28: 48.5106383
C29: Meade Plössl 3000 II | M29: 6.7 | Q29: =M29*35% -> 2.345 | U29: 50 | Y29: 5.846422339 | AD29: 350.7462687 | AH29: 0.67 | AK29: 0.1425531915 | AN29: 34.21276596
C30: Meade Plössl 3000 II | M30: 5 | Q30: =M30*35% -> 1.75 | U30: 50 | Y30: 4.363001745 | AD30: 470 | AH30: 0.5 | AK30: 0.1063829787 | AN30: 25.53191489
C32: Reticolo illuminato | M32: 12.5 | Q32: 10 | U32: 50 | Y32: 10.90750436 | AD32: 188 | AH32: 1.25 | AK32: 0.2659574468 | AN32: 63.82978723
C34: DATI DI OSSERVAZIONE | AE34: Tipologia strumento | AI34: Porta oculari | AL34: Massimo campo inquadrabile [gradi]
C37: Pupilla d'entrata media dell'osservatore (mm) | Z37: 6.5 | AE37: Riflettore | AI37: 50.2 | AL37: =IF(AI37=31.8,(AI37*180/PI())/Q14,(AI37*180/PI())/Q14) -> 1.223935375
C38: Brillantezza superficiale [SQM] | Z38: 21 | AE38: Rifrattore | AI38: 31.8
C39: Magnitudine limite teorica a occhio nudo | Z39: =7.93-5*LOG10(10^(4.316-(Z38/5))+1) -> 6.115542572 | AE39: Riflettore | AI39: 50.2
C40: Magnitudine limite teorica con telescopio (nuova formula) | Z40: =Z39-2+4*LOG10(M14) -> 13.59981402
C41: Potere risolutivo teorico (" d'arco) | Z41: =120/M14 -> 0.5106382979
C42: Focale massima (teorica) dell'oculare utilizzabile (mm) | Z42: =Z37*U14 -> 65
C43: Minimo ingrandimento (teorico) ottenibile senza perdita di luce | Z43: =Q14/Z42 -> 36.15384615
C44: Massimo ingrandimento ottenibile | Z44: =IF(AE37="Rifrattore",2*$M$14,IF(AE37="Riflettore",1.5*$M$14,1.8*$M$14)) -> 352.5
C45: Luce raccolta in più rispetto alla propria pupilla | Z45: =(M14^2)/(Z37^2) -> 1307.100592
C48: FORMULARIO ESPLICATIVO
E51: L E G E N D A
X52: RFt | Z52: = | AA52: LFt | AD52: I | AE52: = | AF52: LFt | AH52: = | AI52: Dt | AK52: PU | AM52: = | AN52: Dt | AO52: = | AP52: LFo
AA53: Dt | AF53: LFo | AI53: PU | AN53: I | AP53: RFt
D54: 1) | E54: Diaframma di campo oculare - Field Stop
D55: 2) | E55: Lunghezza focale oculare - Eyespace Focal Length | X55: FOVo | Z55: = | AA55: AFOV | AC55: = | AD55: AFOV x LFo | AI55: = | AJ55: FSo | AL55: x | AM55: 57,3°
D56: 3) | E56: Estrazione pupillare - Eye Relief | AA56: I | AD56: LFt | AJ56: LFt
D57: 4) | E57: Pupilla d'uscita - Exit Pupil
X58: FOVt max | AB58: = | AC58: ø portaoculari x 180°/PU
D59: D: | F59: Diametro apertura del telescopio | AC59: LFt
D60: LF: | F60: Lunghezza focale
D61: RF: | F61: Rapporto focale
D62: PU: | F62: Pupilla di uscita
D63: FOV: | F63: Campo reale inquadrato
D64: AFOV: | F64: Campo apparente dell'oculare
D65: FS: | F65: Diaframma di campo - Field Stop
D66: I: | F66: Ingrandimento
D67: t: | F67: Telescopio
D68: o: | F68: Oculare
C79: C A L C O L I P E R F O T O G R A F I A
D82: S E T U P
D85: Telescopio di ripresa: | M85: Celestron C9¼ | U85: Dr: | W85: =VLOOKUP($M85,Telescopi!$A:$E,3,FALSE) -> 235 | Z85: Fr: | AB85: =VLOOKUP($M85,Telescopi!$A:$E,4,FALSE)*IF(M86<>0,M86,1) -> 2350 | AE85: RFr: | AG85: =AB85/W85 -> 10
D86: Variatore di focale:
D87: Telescopio guida: | M87: Skywatcher 70/500 | U87: Dg: | W87: =VLOOKUP($M87,Telescopi!$A:$E,3,FALSE) -> 70 | Z87: Fg: | AB87: =VLOOKUP($M87,Telescopi!$A:$E,4,FALSE)*IF(M88<>0,M88,1) -> 500 | AE87: RFg: | AG87: =AB87/W87 -> 7.142857143
D88: Variatore di focale:
D90: Camera di ripresa: | M90: Canon 450D/Rebel XSi | X90: Binning: | AB90: 1x1 | AE90: µm: | AG90: =VLOOKUP(M90,CDD!A:I,8,FALSE) -> 5.2 | AJ90: Ris: | AL90: =VLOOKUP(M90,CDD!A:I,7,FALSE) -> 4272 x 2848
D91: Camera guida: | M91: ASI120MM | X91: Binning: | AB91: 1x1 | AE91: µm: | AG91: =VLOOKUP(M91,CDD!A:I,8,FALSE) -> 3.75 | AJ91: Ris: | AL91: =VLOOKUP(M91,CDD!A:I,7,FALSE) -> 1280 x 960
AB92: 1x1
D93: Risoluzione [Arcsec] | M93: =120/W85 -> 0.5106382979 | AB93: 2x2
D94: Dettaglio minimo [m] | M94: =(4.8*10^-3)*M93*400000 -> 980.4255319
D96: Focale oculare usato [mm]: | O96: 9.5
D97: Distanza oculare-CDD [mm]: | O97: 70
D99: Seeing presente: | K99: 3 | N99: 1 | O99: 1.5 | P99: 2 | Q99: 2.5 | R99: 3 | S99: 3.5 | T99: 4 | U99: 4.5 | V99: 5
D102: A U T O G U I D A
D105: Dipende dalla focale dei telescopi di ripresa e di guida e dalle dimensioni dei pixel delle
D106: camere di acquisizione e di guida, secondo la seguente formula:
D108: Fg / [Fr * (Pg / (5 * Pr))] > 2
D110: Secondo tale formula, l'attuale combinazione è una scelta | AA110: =IF(AB87/(AB85*(VLOOKUP($M91,CDD!$A:$I,8,FALSE)*IF(AB91="1x1",1,IF(AB91="2x2",2))/(5*VLOOKUP($M90,CDD!$A:$I,8,FALSE)*IF(AB90="1x1",1,IF(AB90="2x2",2)))))>2,"valida","non valida") -> non valida | AG110: ( | AH110: =AB87/(AB85*(VLOOKUP($M91,CDD!$A:$I,8,FALSE)*IF(AB91="1x1",1,IF(AB91="2x2",2))/(5*VLOOKUP($M90,CDD!$A:$I,8,FALSE)*IF(AB90="1x1",1,IF(AB90="2x2",2))))) -> 1.475177305 | AJ110: )
D111: La focale di guida minima consigliata è: | U111: =2*(AB85*(VLOOKUP($M91,CDD!$A:$I,8,FALSE)*IF(AB91="1x1",1,IF(AB91="2x2",2))/(5*VLOOKUP($M90,CDD!$A:$I,8,FALSE)*IF(AB90="1x1",1,IF(AB90="2x2",2))))) -> 677.8846154
D114: F O C A L I T E O R I C H E H I - R E S
T116: Rosso | U116: Verde | V116: Blu | W116: IR-Pass
S117: I° | T117: Verde | X117: II° - Plinio | AD117: Visibile [550nm]
D118: Focale di campionamento ideale [mm]: | S118: =(AG90/1000*W85*3)/(IF(T117="Rosso",650,IF(T117="Verde",510,IF(T117="Blu",475,IF(T117="IR-Pass",685))))/1000000)/1.22 -> 5891.996143 | X118: =VLOOKUP($M90,CDD!$A:$I,8,FALSE)*IF(AB90="1x1",1,IF(AB90="2x2",2))*W85*3.438 -> 4201.236 | AD118: =((AG90/1000)*W85*206265)/37 -> 6812.31973
D119: Moltiplicatore focale: | S119: =S118/AB85 -> 2.507232401 | X119: =X118/AB85 -> 1.78776 | AD119: =AD118/AB85 -> 2.898859459
D120: µm sensore ideale: | M120: =AB85/(W85*3.438) -> 2.90866783
D122: Diametro limite teorico [mm]: | T122: =3.5*IF(K99=5,34,IF(K99=4.5,37.5,IF(K99=4,40,IF(K99=3.5,58,IF(K99=3,104,IF(K99=2.5,150,IF(K99=2,250,IF(K99=1.5,300,350)))))))) -> 364
D123: Ingrandimento a focale di campionamento: | T123: =(X118/VLOOKUP($M90,CDD!$A:$I,5,FALSE))/1.38888888888 -> 136.2563027
D125: Tempo Massimo di ripresa di | O125: Marte | S125: : | T125: =7.72*10^(-7)*(VLOOKUP(O125,Pianeti!A2:D10,2,FALSE)*M93*VLOOKUP(O125,Pianeti!A2:D10,3,FALSE))/VLOOKUP(O125,Pianeti!A2:D10,4,FALSE) -> 804.8897121
E127: DATI RIPRESA A FUOCO DIRETTO | AA127: DATI RIPRESA IN PROIEZIONE DI OCULARE
F128: Lunghezza focale: | Q128: =AB85 -> 2350 | AB128: Lunghezza focale: | AM128: =AB85*((O97/O96)-1) -> 14965.78947
F129: Ingrandimento apparente: | Q129: =(AB85/VLOOKUP($M90,CDD!$A:$I,5,FALSE))/1.38888888888 -> 76.21621622 | AB129: Ingrandimento apparente: | AM129: =(AM128/VLOOKUP($M90,CDD!$A:$I,5,FALSE))/1.38888888888 -> 485.3769559
F130: Oculare equivalente: | Q130: =Q128/Q129 -> 30.83333333 | AB130: Oculare equivalente: | AM130: =AM128/AM129 -> 30.83333333
D133: D A T I D E E P - S K Y
D136: Campo inquadrato [°,',"]: | O136: =Convert_Degree(57.296*VLOOKUP(M90,CDD!$A:$I,5,FALSE)/AB85) -> 0° 32' 29" | T136: x | U136: =Convert_Degree(57.296*VLOOKUP(M90,CDD!$A:$I,6,FALSE)/AB85) -> 0° 21' 39"
D138: Scala di immagine [Arcsec/Pix]: | Q138: =206.265*(VLOOKUP($M90,CDD!$A:$I,6,FALSE)*IF(AB90="1x1",1,IF(AB90="2x2",2))/AB85) -> 1.299030638
D141: C A L C O L O F O C A L E D I R I P R E S A
D144: Campionamento immagine [Arcosec]: | R144: 0.93 | V144: * Valore registrato tramite altra fonte
D146: RFr: | F146: Px [µm] x 206,3 | P146: = | Q146: =VLOOKUP(M90,CDD!$A:$I,8,FALSE)*206.3 -> 1072.76 | T146: = | U146: =Q146/Q147 -> 4.908533516 | W146: Rapporto focale | AD146: = | AE146: =U146*W85 -> 1153.505376 | AH146: Focale equivalente
F147: Dr [mm] x Campionamento | Q147: =VLOOKUP(M85,Telescopi!$A:$E,3,FALSE)*R144 -> 218.55

Sheet Messier
A1: CATALOGO | B1: NGC | C1: Nome comune | D1: Tipo di oggetto | E1: Costellazione | F1: M.A. | G1: Zona | H1: Culmine | I1: Stagione | J1: Dim [arcsec] | K1: A. R. [H.m.] | L1: Dec. [° '] | M1: =TODAY() -> 2014-06-27
A2: M1 | B2: NGC 1952 | C2: Nebulosa del Granchio | D2: Resto di supernova | E2: Toro | F2: 9 | G2: =VLOOKUP(E2,Costellazioni!A:E,2,FALSE) -> Equatoriale | H2: =VLOOKUP(E2,Costellazioni!A:E,3,FALSE) -> 2014-01-01 | I2: =VLOOKUP(E2,Costellazioni!A:E,4,FALSE) -> Inverno
A3: M45 | B3: NGC 1432 | C3: Pleiadi | D3: Ammasso aperto | E3: Toro | F3: 1.4 | G3: =VLOOKUP(E3,Costellazioni!A:E,2,FALSE) -> Equatoriale | H3: =VLOOKUP(E3,Costellazioni!A:E,3,FALSE) -> 2014-01-01 | I3: =VLOOKUP(E3,Costellazioni!A:E,4,FALSE) -> Inverno
A4: M42 | B4: NGC 1976 | C4: Nebulosa di Orione | D4: Nebulosa diffusa | E4: Orione | F4: 5 | G4: =VLOOKUP(E4,Costellazioni!A:E,2,FALSE) -> Equatoriale | H4: =VLOOKUP(E4,Costellazioni!A:E,3,FALSE) -> 2014-01-15 | I4: =VLOOKUP(E4,Costellazioni!A:E,4,FALSE) -> Inverno
A5: M43 | B5: NGC 1982 | C5: Nebulosa De Mairan | D5: Nebulosa diffusa | E5: Orione | F5: 7 | G5: =VLOOKUP(E5,Costellazioni!A:E,2,FALSE) -> Equatoriale | H5: =VLOOKUP(E5,Costellazioni!A:E,3,FALSE) -> 2014-01-15 | I5: =VLOOKUP(E5,Costellazioni!A:E,4,FALSE) -> Inverno
A6: M78 | B6: NGC 2068 | D6: Nebulosa diffusa | E6: Orione | F6: 8 | G6: =VLOOKUP(E6,Costellazioni!A:E,2,FALSE) -> Equatoriale | H6: =VLOOKUP(E6,Costellazioni!A:E,3,FALSE) -> 2014-01-15 | I6: =VLOOKUP(E6,Costellazioni!A:E,4,FALSE) -> Inverno
A7: M79 | B7: NGC 1904 | D7: Ammasso globulare | E7: Lepre | F7: 8.5 | G7: =VLOOKUP(E7,Costellazioni!A:E,2,FALSE) -> Equatoriale | H7: =VLOOKUP(E7,Costellazioni!A:E,3,FALSE) -> 2014-01-15 | I7: =VLOOKUP(E7,Costellazioni!A:E,4,FALSE) -> Inverno
A8: M36 | B8: NGC 1960 | D8: Ammasso aperto | E8: Auriga | F8: 6.5 | G8: =VLOOKUP(E8,Costellazioni!A:E,2,FALSE) -> Boreale | H8: =VLOOKUP(E8,Costellazioni!A:E,3,FALSE) -> 2014-01-20 | I8: =VLOOKUP(E8,Costellazioni!A:E,4,FALSE) -> Inverno
A9: M37 | B9: NGC 2099 | D9: Ammasso aperto | E9: Auriga | F9: 6 | G9: =VLOOKUP(E9,Costellazioni!A:E,2,FALSE) -> Boreale | H9: =VLOOKUP(E9,Costellazioni!A:E,3,FALSE) -> 2014-01-20 | I9: =VLOOKUP(E9,Costellazioni!A:E,4,FALSE) -> Inverno
A10: M38 | B10: NGC 1912 | D10: Ammasso aperto | E10: Auriga | F10: 7 | G10: =VLOOKUP(E10,Costellazioni!A:E,2,FALSE) -> Boreale | H10: =VLOOKUP(E10,Costellazioni!A:E,3,FALSE) -> 2014-01-20 | I10: =VLOOKUP(E10,Costellazioni!A:E,4,FALSE) -> Inverno
A11: M41 | B11: NGC 2287 | D11: Ammasso aperto | E11: Cane Maggiore | F11: 5 | G11: =VLOOKUP(E11,Costellazioni!A:E,2,FALSE) -> Equatoriale | H11: =VLOOKUP(E11,Costellazioni!A:E,3,FALSE) -> 2014-02-01 | I11: =VLOOKUP(E11,Costellazioni!A:E,4,FALSE) -> Inverno
A12: M35 | B12: NGC 2168 | D12: Ammasso aperto | E12: Gemelli | F12: 5.5 | G12: =VLOOKUP(E12,Costellazioni!A:E,2,FALSE) -> Equatoriale | H12: =VLOOKUP(E12,Costellazioni!A:E,3,FALSE) -> 2014-02-05 | I12: =VLOOKUP(E12,Costellazioni!A:E,4,FALSE) -> Inverno
A13: M50 | B13: NGC 2323 | D13: Ammasso aperto | E13: Unicorno | F13: 7 | G13: =VLOOKUP(E13,Costellazioni!A:E,2,FALSE) -> Equatoriale | H13: =VLOOKUP(E13,Costellazioni!A:E,3,FALSE) -> 2014-02-05 | I13: =VLOOKUP(E13,Costellazioni!A:E,4,FALSE) -> Inverno
A14: M46 | B14: NGC 2437 | D14: Ammasso aperto | E14: Poppa | F14: 6.5 | G14: =VLOOKUP(E14,Costellazioni!A:E,2,FALSE) -> Australe | H14: =VLOOKUP(E14,Costellazioni!A:E,3,FALSE) -> 2014-02-17 | I14: =VLOOKUP(E14,Costellazioni!A:E,4,FALSE) -> Inverno
A15: M47 | B15: NGC 2422 | D15: Ammasso aperto | E15: Poppa | F15: 4.5 | G15: =VLOOKUP(E15,Costellazioni!A:E,2,FALSE) -> Australe | H15: =VLOOKUP(E15,Costellazioni!A:E,3,FALSE) -> 2014-02-17 | I15: =VLOOKUP(E15,Costellazioni!A:E,4,FALSE) -> Inverno
A16: M93 | B16: NGC 2447 | D16: Ammasso aperto | E16: Poppa | F16: 6.5 | G16: =VLOOKUP(E16,Costellazioni!A:E,2,FALSE) -> Australe | H16: =VLOOKUP(E16,Costellazioni!A:E,3,FALSE) -> 2014-02-17 | I16: =VLOOKUP(E16,Costellazioni!A:E,4,FALSE) -> Inverno
A17: M44 | B17: NGC 2632 | C17: Presepe | D17: Ammasso aperto | E17: Cancro | F17: 3.1 | G17: =VLOOKUP(E17,Costellazioni!A:E,2,FALSE) -> Equatoriale | H17: =VLOOKUP(E17,Costellazioni!A:E,3,FALSE) -> 2014-02-28 | I17: =VLOOKUP(E17,Costellazioni!A:E,4,FALSE) -> Inverno
A18: M67 | B18: NGC 2682 | D18: Ammasso aperto | E18: Cancro | F18: 7.5 | G18: =VLOOKUP(E18,Costellazioni!A:E,2,FALSE) -> Equatoriale | H18: =VLOOKUP(E18,Costellazioni!A:E,3,FALSE) -> 2014-02-28 | I18: =VLOOKUP(E18,Costellazioni!A:E,4,FALSE) -> Inverno
A19: M105 | B19: NGC 3379 | D19: Galassia ellittica | E19: Leone | F19: 11 | G19: =VLOOKUP(E19,Costellazioni!A:E,2,FALSE) -> Equatoriale | H19: =VLOOKUP(E19,Costellazioni!A:E,3,FALSE) -> 2014-04-01 | I19: =VLOOKUP(E19,Costellazioni!A:E,4,FALSE) -> Primavera
A20: M65 | B20: NGC 3623 | D20: Galassia spirale | E20: Leone | F20: 10.5 | G20: =VLOOKUP(E20,Costellazioni!A:E,2,FALSE) -> Equatoriale | H20: =VLOOKUP(E20,Costellazioni!A:E,3,FALSE) -> 2014-04-01 | I20: =VLOOKUP(E20,Costellazioni!A:E,4,FALSE) -> Primavera
A21: M66 | B21: NGC 3627 | D21: Galassia spirale | E21: Leone | F21: 10 | G21: =VLOOKUP(E21,Costellazioni!A:E,2,FALSE) -> Equatoriale | H21: =VLOOKUP(E21,Costellazioni!A:E,3,FALSE) -> 2014-04-01 | I21: =VLOOKUP(E21,Costellazioni!A:E,4,FALSE) -> Primavera
A22: M95 | B22: NGC 3351 | D22: Galassia spirale barrata | E22: Leone | F22: 11 | G22: =VLOOKUP(E22,Costellazioni!A:E,2,FALSE) -> Equatoriale | H22: =VLOOKUP(E22,Costellazioni!A:E,3,FALSE) -> 2014-04-01 | I22: =VLOOKUP(E22,Costellazioni!A:E,4,FALSE) -> Primavera
A23: M96 | B23: NGC 3368 | D23: Galassia spirale | E23: Leone | F23: 10.5 | G23: =VLOOKUP(E23,Costellazioni!A:E,2,FALSE) -> Equatoriale | H23: =VLOOKUP(E23,Costellazioni!A:E,3,FALSE) -> 2014-04-01 | I23: =VLOOKUP(E23,Costellazioni!A:E,4,FALSE) -> Primavera
A24: M101 | B24: NGC 5457 | C24: Galassia Girandola | D24: Galassia spirale | E24: Orsa Maggiore | F24: 8.5 | G24: =VLOOKUP(E24,Costellazioni!A:E,2,FALSE) -> Boreale | H24: =VLOOKUP(E24,Costellazioni!A:E,3,FALSE) -> 2014-04-11 | I24: =VLOOKUP(E24,Costellazioni!A:E,4,FALSE) -> Primavera
A25: M108 | B25: NGC 3556 | D25: Galassia spirale | E25: Orsa Maggiore | F25: 11 | G25: =VLOOKUP(E25,Costellazioni!A:E,2,FALSE) -> Boreale | H25: =VLOOKUP(E25,Costellazioni!A:E,3,FALSE) -> 2014-04-11 | I25: =VLOOKUP(E25,Costellazioni!A:E,4,FALSE) -> Primavera
A26: M109 | B26: NGC 3992 | D26: Galassia spirale barrata | E26: Orsa Maggiore | F26: 11 | G26: =VLOOKUP(E26,Costellazioni!A:E,2,FALSE) -> Boreale | H26: =VLOOKUP(E26,Costellazioni!A:E,3,FALSE) -> 2014-04-11 | I26: =VLOOKUP(E26,Costellazioni!A:E,4,FALSE) -> Primavera
A27: M40 | B27: Nessuno | D27: Asterismo | E27: Orsa Maggiore | F27: 9 | G27: =VLOOKUP(E27,Costellazioni!A:E,2,FALSE) -> Boreale | H27: =VLOOKUP(E27,Costellazioni!A:E,3,FALSE) -> 2014-04-11 | I27: =VLOOKUP(E27,Costellazioni!A:E,4,FALSE) -> Primavera
A28: M81 | B28: NGC 3031 | C28: Galassia di Bode | D28: Galassia spirale | E28: Orsa Maggiore | F28: 8.5 | G28: =VLOOKUP(E28,Costellazioni!A:E,2,FALSE) -> Boreale | H28: =VLOOKUP(E28,Costellazioni!A:E,3,FALSE) -> 2014-04-11 | I28: =VLOOKUP(E28,Costellazioni!A:E,4,FALSE) -> Primavera
A29: M82 | B29: NGC 3034 | C29: Galassia Sigaro | D29: Galassia attiva | E29: Orsa Maggiore | F29: 9.5 | G29: =VLOOKUP(E29,Costellazioni!A:E,2,FALSE) -> Boreale | H29: =VLOOKUP(E29,Costellazioni!A:E,3,FALSE) -> 2014-04-11 | I29: =VLOOKUP(E29,Costellazioni!A:E,4,FALSE) -> Primavera
A30: M97 | B30: NGC 3587 | C30: Nebulosa Gufo | D30: Nebulosa planetaria | E30: Orsa Maggiore | F30: 12 | G30: =VLOOKUP(E30,Costellazioni!A:E,2,FALSE) -> Boreale | H30: =VLOOKUP(E30,Costellazioni!A:E,3,FALSE) -> 2014-04-11 | I30: =VLOOKUP(E30,Costellazioni!A:E,4,FALSE) -> Primavera
A31: M48 | B31: NGC 2548 | D31: Ammasso aperto | E31: Idra | F31: 5.5 | G31: =VLOOKUP(E31,Costellazioni!A:E,2,FALSE) -> Equatoriale | H31: =VLOOKUP(E31,Costellazioni!A:E,3,FALSE) -> 2014-04-15 | I31: =VLOOKUP(E31,Costellazioni!A:E,4,FALSE) -> Primavera
A32: M68 | B32: NGC 4590 | D32: Ammasso globulare | E32: Idra | F32: 9 | G32: =VLOOKUP(E32,Costellazioni!A:E,2,FALSE) -> Equatoriale | H32: =VLOOKUP(E32,Costellazioni!A:E,3,FALSE) -> 2014-04-15 | I32: =VLOOKUP(E32,Costellazioni!A:E,4,FALSE) -> Primavera
A33: M83 | B33: NGC 5236 | C33: Galassia Girandola del Sud | D33: Galassia spirale | E33: Idra | F33: 8.5 | G33: =VLOOKUP(E33,Costellazioni!A:E,2,FALSE) -> Equatoriale | H33: =VLOOKUP(E33,Costellazioni!A:E,3,FALSE) -> 2014-04-15 | I33: =VLOOKUP(E33,Costellazioni!A:E,4,FALSE) -> Primavera
A34: M100 | B34: NGC 4321 | D34: Galassia spirale | E34: Chioma di Berenice | F34: 10.5 | G34: =VLOOKUP(E34,Costellazioni!A:E,2,FALSE) -> Equatoriale | H34: =VLOOKUP(E34,Costellazioni!A:E,3,FALSE) -> 2014-05-02 | I34: =VLOOKUP(E34,Costellazioni!A:E,4,FALSE) -> Primavera
A35: M53 | B35: NGC 5024 | D35: Ammasso globulare | E35: Chioma di Berenice | F35: 8.5 | G35: =VLOOKUP(E35,Costellazioni!A:E,2,FALSE) -> Equatoriale | H35: =VLOOKUP(E35,Costellazioni!A:E,3,FALSE) -> 2014-05-02 | I35: =VLOOKUP(E35,Costellazioni!A:E,4,FALSE) -> Primavera
A36: M64 | B36: NGC 4826 | C36: Galassia Occhio Nero | D36: Galassia spirale | E36: Chioma di Berenice | F36: 9 | G36: =VLOOKUP(E36,Costellazioni!A:E,2,FALSE) -> Equatoriale | H36: =VLOOKUP(E36,Costellazioni!A:E,3,FALSE) -> 2014-05-02 | I36: =VLOOKUP(E36,Costellazioni!A:E,4,FALSE) -> Primavera
A37: M85 | B37: NGC 4382 | D37: Galassia lenticolare | E37: Chioma di Berenice | F37: 10.5 | G37: =VLOOKUP(E37,Costellazioni!A:E,2,FALSE) -> Equatoriale | H37: =VLOOKUP(E37,Costellazioni!A:E,3,FALSE) -> 2014-05-02 | I37: =VLOOKUP(E37,Costellazioni!A:E,4,FALSE) -> Primavera
A38: M88 | B38: NGC 4501 | D38: Galassia spirale | E38: Chioma di Berenice | F38: 11 | G38: =VLOOKUP(E38,Costellazioni!A:E,2,FALSE) -> Equatoriale | H38: =VLOOKUP(E38,Costellazioni!A:E,3,FALSE) -> 2014-05-02 | I38: =VLOOKUP(E38,Costellazioni!A:E,4,FALSE) -> Primavera
A39: M91 | B39: NGC 4548 | D39: Galassia spirale | E39: Chioma di Berenice | F39: 11.5 | G39: =VLOOKUP(E39,Costellazioni!A:E,2,FALSE) -> Equatoriale | H39: =VLOOKUP(E39,Costellazioni!A:E,3,FALSE) -> 2014-05-02 | I39: =VLOOKUP(E39,Costellazioni!A:E,4,FALSE) -> Primavera
A40: M98 | B40: NGC 4192 | D40: Galassia spirale | E40: Chioma di Berenice | F40: 11 | G40: =VLOOKUP(E40,Costellazioni!A:E,2,FALSE) -> Equatoriale | H40: =VLOOKUP(E40,Costellazioni!A:E,3,FALSE) -> 2014-05-02 | I40: =VLOOKUP(E40,Costellazioni!A:E,4,FALSE) -> Primavera
A41: M99 | B41: NGC 4254 | D41: Galassia spirale | E41: Chioma di Berenice | F41: 10.5 | G41: =VLOOKUP(E41,Costellazioni!A:E,2,FALSE) -> Equatoriale | H41: =VLOOKUP(E41,Costellazioni!A:E,3,FALSE) -> 2014-05-02 | I41: =VLOOKUP(E41,Costellazioni!A:E,4,FALSE) -> Primavera
A42: M106 | B42: NGC 4258 | D42: Galassia spirale | E42: Cani da Caccia | F42: 9.5 | G42: =VLOOKUP(E42,Costellazioni!A:E,2,FALSE) -> Boreale | H42: =VLOOKUP(E42,Costellazioni!A:E,3,FALSE) -> 2014-05-07 | I42: =VLOOKUP(E42,Costellazioni!A:E,4,FALSE) -> Primavera
A43: M3 | B43: NGC 5272 | D43: Ammasso globulare | E43: Cani da Caccia | F43: 7 | G43: =VLOOKUP(E43,Costellazioni!A:E,2,FALSE) -> Boreale | H43: =VLOOKUP(E43,Costellazioni!A:E,3,FALSE) -> 2014-05-07 | I43: =VLOOKUP(E43,Costellazioni!A:E,4,FALSE) -> Primavera
A44: M51 | B44: NGC 5194 | C44: Galassia Vortice | D44: Galassia spirale | E44: Cani da Caccia | F44: 8 | G44: =VLOOKUP(E44,Costellazioni!A:E,2,FALSE) -> Boreale | H44: =VLOOKUP(E44,Costellazioni!A:E,3,FALSE) -> 2014-05-07 | I44: =VLOOKUP(E44,Costellazioni!A:E,4,FALSE) -> Primavera
A45: M63 | B45: NGC 5055 | C45: Galassia Girasole | D45: Galassia spirale | E45: Cani da Caccia | F45: 8.5 | G45: =VLOOKUP(E45,Costellazioni!A:E,2,FALSE) -> Boreale | H45: =VLOOKUP(E45,Costellazioni!A:E,3,FALSE) -> 2014-05-07 | I45: =VLOOKUP(E45,Costellazioni!A:E,4,FALSE) -> Primavera
A46: M94 | B46: NGC 4736 | D46: Galassia spirale | E46: Cani da Caccia | F46: 9.5 | G46: =VLOOKUP(E46,Costellazioni!A:E,2,FALSE) -> Boreale | H46: =VLOOKUP(E46,Costellazioni!A:E,3,FALSE) -> 2014-05-07 | I46: =VLOOKUP(E46,Costellazioni!A:E,4,FALSE) -> Primavera
A47: M104 | B47: NGC 4594 | C47: Galassia Sombrero | D47: Galassia spirale | E47: Vergine | F47: 9.5 | G47: =VLOOKUP(E47,Costellazioni!A:E,2,FALSE) -> Equatoriale | H47: =VLOOKUP(E47,Costellazioni!A:E,3,FALSE) -> 2014-05-10 | I47: =VLOOKUP(E47,Costellazioni!A:E,4,FALSE) -> Primavera
A48: M49 | B48: NGC 4472 | D48: Galassia ellittica | E48: Vergine | F48: 10 | G48: =VLOOKUP(E48,Costellazioni!A:E,2,FALSE) -> Equatoriale | H48: =VLOOKUP(E48,Costellazioni!A:E,3,FALSE) -> 2014-05-10 | I48: =VLOOKUP(E48,Costellazioni!A:E,4,FALSE) -> Primavera
A49: M58 | B49: NGC 4579 | D49: Galassia spirale barrata | E49: Vergine | F49: 11 | G49: =VLOOKUP(E49,Costellazioni!A:E,2,FALSE) -> Equatoriale | H49: =VLOOKUP(E49,Costellazioni!A:E,3,FALSE) -> 2014-05-10 | I49: =VLOOKUP(E49,Costellazioni!A:E,4,FALSE) -> Primavera
A50: M59 | B50: NGC 4621 | D50: Galassia ellittica | E50: Vergine | F50: 11.5 | G50: =VLOOKUP(E50,Costellazioni!A:E,2,FALSE) -> Equatoriale | H50: =VLOOKUP(E50,Costellazioni!A:E,3,FALSE) -> 2014-05-10 | I50: =VLOOKUP(E50,Costellazioni!A:E,4,FALSE) -> Primavera
A51: M60 | B51: NGC 4649 | D51: Galassia ellittica | E51: Vergine | F51: 10.5 | G51: =VLOOKUP(E51,Costellazioni!A:E,2,FALSE) -> Equatoriale | H51: =VLOOKUP(E51,Costellazioni!A:E,3,FALSE) -> 2014-05-10 | I51: =VLOOKUP(E51,Costellazioni!A:E,4,FALSE) -> Primavera
A52: M61 | B52: NGC 4303 | D52: Galassia spirale | E52: Vergine | F52: 10.5 | G52: =VLOOKUP(E52,Costellazioni!A:E,2,FALSE) -> Equatoriale | H52: =VLOOKUP(E52,Costellazioni!A:E,3,FALSE) -> 2014-05-10 | I52: =VLOOKUP(E52,Costellazioni!A:E,4,FALSE) -> Primavera
A53: M84 | B53: NGC 4374 | D53: Galassia lenticolare | E53: Vergine | F53: 11 | G53: =VLOOKUP(E53,Costellazioni!A:E,2,FALSE) -> Equatoriale | H53: =VLOOKUP(E53,Costellazioni!A:E,3,FALSE) -> 2014-05-10 | I53: =VLOOKUP(E53,Costellazioni!A:E,4,FALSE) -> Primavera
A54: M86 | B54: NGC 4406 | D54: Galassia lenticolare | E54: Vergine | F54: 11 | G54: =VLOOKUP(E54,Costellazioni!A:E,2,FALSE) -> Equatoriale | H54: =VLOOKUP(E54,Costellazioni!A:E,3,FALSE) -> 2014-05-10 | I54: =VLOOKUP(E54,Costellazioni!A:E,4,FALSE) -> Primavera
A55: M87 | B55: NGC 4486 | C55: Galassia Virgo A | D55: Galassia ellittica | E55: Vergine | F55: 11 | G55: =VLOOKUP(E55,Costellazioni!A:E,2,FALSE) -> Equatoriale | H55: =VLOOKUP(E55,Costellazioni!A:E,3,FALSE) -> 2014-05-10 | I55: =VLOOKUP(E55,Costellazioni!A:E,4,FALSE) -> Primavera
A56: M89 | B56: NGC 4552 | D56: Galassia ellittica | E56: Vergine | F56: 11.5 | G56: =VLOOKUP(E56,Costellazioni!A:E,2,FALSE) -> Equatoriale | H56: =VLOOKUP(E56,Costellazioni!A:E,3,FALSE) -> 2014-05-10 | I56: =VLOOKUP(E56,Costellazioni!A:E,4,FALSE) -> Primavera
A57: M90 | B57: NGC 4569 | D57: Galassia spirale | E57: Vergine | F57: 11 | G57: =VLOOKUP(E57,Costellazioni!A:E,2,FALSE) -> Equatoriale | H57: =VLOOKUP(E57,Costellazioni!A:E,3,FALSE) -> 2014-05-10 | I57: =VLOOKUP(E57,Costellazioni!A:E,4,FALSE) -> Primavera
A58: M102 | B58: Nessuno | C58: Galassia Fuso | D58: Galassia lenticolare | E58: Dragone | F58: 10.5 | G58: =VLOOKUP(E58,Costellazioni!A:E,2,FALSE) -> Boreale | H58: =VLOOKUP(E58,Costellazioni!A:E,3,FALSE) -> 2014-05-25 | I58: =VLOOKUP(E58,Costellazioni!A:E,4,FALSE) -> Primavera
A59: M13 | B59: NGC 6205 | C59: Ammasso Globulare di Ercole | D59: Ammasso globulare | E59: Ercole | F59: 5.8 | G59: =VLOOKUP(E59,Costellazioni!A:E,2,FALSE) -> Boreale | H59: =VLOOKUP(E59,Costellazioni!A:E,3,FALSE) -> 2014-06-13 | I59: =VLOOKUP(E59,Costellazioni!A:E,4,FALSE) -> Primavera
A60: M92 | B60: NGC 6341 | D60: Ammasso globulare | E60: Ercole | F60: 7.5 | G60: =VLOOKUP(E60,Costellazioni!A:E,2,FALSE) -> Boreale | H60: =VLOOKUP(E60,Costellazioni!A:E,3,FALSE) -> 2014-06-13 | I60: =VLOOKUP(E60,Costellazioni!A:E,4,FALSE) -> Primavera
A61: M16 | B61: NGC 6611 | C61: Ammasso della Nebulosa Aquila | D61: Ammasso con nebulosa | E61: Serpente | F61: 6.5 | G61: =VLOOKUP(E61,Costellazioni!A:E,2,FALSE) -> Equatoriale | H61: =VLOOKUP(E61,Costellazioni!A:E,3,FALSE) -> 2014-07-01 | I61: =VLOOKUP(E61,Costellazioni!A:E,4,FALSE) -> Estate
A62: M5 | B62: NGC 5904 | D62: Ammasso globulare | E62: Serpente | F62: 7 | G62: =VLOOKUP(E62,Costellazioni!A:E,2,FALSE) -> Equatoriale | H62: =VLOOKUP(E62,Costellazioni!A:E,3,FALSE) -> 2014-07-01 | I62: =VLOOKUP(E62,Costellazioni!A:E,4,FALSE) -> Estate
A63: M4 | B63: NGC 6121 | D63: Ammasso globulare | E63: Scorpione | F63: 7.5 | G63: =VLOOKUP(E63,Costellazioni!A:E,2,FALSE) -> Equatoriale | H63: =VLOOKUP(E63,Costellazioni!A:E,3,FALSE) -> 2014-07-03 | I63: =VLOOKUP(E63,Costellazioni!A:E,4,FALSE) -> Estate
A64: M6 | B64: NGC 6405 | C64: Ammasso della Farfalla | D64: Ammasso aperto | E64: Scorpione | F64: 4.5 | G64: =VLOOKUP(E64,Costellazioni!A:E,2,FALSE) -> Equatoriale | H64: =VLOOKUP(E64,Costellazioni!A:E,3,FALSE) -> 2014-07-03 | I64: =VLOOKUP(E64,Costellazioni!A:E,4,FALSE) -> Estate
A65: M7 | B65: NGC 6475 | C65: Ammasso di Tolomeo | D65: Ammasso aperto | E65: Scorpione | F65: 3.5 | G65: =VLOOKUP(E65,Costellazioni!A:E,2,FALSE) -> Equatoriale | H65: =VLOOKUP(E65,Costellazioni!A:E,3,FALSE) -> 2014-07-03 | I65: =VLOOKUP(E65,Costellazioni!A:E,4,FALSE) -> Estate
A66: M80 | B66: NGC 6093 | D66: Ammasso globulare | E66: Scorpione | F66: 8.5 | G66: =VLOOKUP(E66,Costellazioni!A:E,2,FALSE) -> Equatoriale | H66: =VLOOKUP(E66,Costellazioni!A:E,3,FALSE) -> 2014-07-03 | I66: =VLOOKUP(E66,Costellazioni!A:E,4,FALSE) -> Estate
A67: M10 | B67: NGC 6254 | D67: Ammasso globulare | E67: Ofiuco | F67: 7.5 | G67: =VLOOKUP(E67,Costellazioni!A:E,2,FALSE) -> Equatoriale | H67: =VLOOKUP(E67,Costellazioni!A:E,3,FALSE) -> 2014-07-10 | I67: =VLOOKUP(E67,Costellazioni!A:E,4,FALSE) -> Estate
A68: M107 | B68: NGC 6171 | D68: Ammasso globulare | E68: Ofiuco | F68: 10 | G68: =VLOOKUP(E68,Costellazioni!A:E,2,FALSE) -> Equatoriale | H68: =VLOOKUP(E68,Costellazioni!A:E,3,FALSE) -> 2014-07-10 | I68: =VLOOKUP(E68,Costellazioni!A:E,4,FALSE) -> Estate
A69: M12 | B69: NGC 6218 | D69: Ammasso globulare | E69: Ofiuco | F69: 8 | G69: =VLOOKUP(E69,Costellazioni!A:E,2,FALSE) -> Equatoriale | H69: =VLOOKUP(E69,Costellazioni!A:E,3,FALSE) -> 2014-07-10 | I69: =VLOOKUP(E69,Costellazioni!A:E,4,FALSE) -> Estate
A70: M14 | B70: NGC 6402 | D70: Ammasso globulare | E70: Ofiuco | F70: 9.5 | G70: =VLOOKUP(E70,Costellazioni!A:E,2,FALSE) -> Equatoriale | H70: =VLOOKUP(E70,Costellazioni!A:E,3,FALSE) -> 2014-07-10 | I70: =VLOOKUP(E70,Costellazioni!A:E,4,FALSE) -> Estate
A71: M19 | B71: NGC 6273 | D71: Ammasso globulare | E71: Ofiuco | F71: 8.5 | G71: =VLOOKUP(E71,Costellazioni!A:E,2,FALSE) -> Equatoriale | H71: =VLOOKUP(E71,Costellazioni!A:E,3,FALSE) -> 2014-07-10 | I71: =VLOOKUP(E71,Costellazioni!A:E,4,FALSE) -> Estate
A72: M62 | B72: NGC 6266 | D72: Ammasso globulare | E72: Ofiuco | F72: 8 | G72: =VLOOKUP(E72,Costellazioni!A:E,2,FALSE) -> Equatoriale | H72: =VLOOKUP(E72,Costellazioni!A:E,3,FALSE) -> 2014-07-10 | I72: =VLOOKUP(E72,Costellazioni!A:E,4,FALSE) -> Estate
A73: M9 | B73: NGC 6333 | D73: Ammasso globulare | E73: Ofiuco | F73: 9 | G73: =VLOOKUP(E73,Costellazioni!A:E,2,FALSE) -> Equatoriale | H73: =VLOOKUP(E73,Costellazioni!A:E,3,FALSE) -> 2014-07-10 | I73: =VLOOKUP(E73,Costellazioni!A:E,4,FALSE) -> Estate
A74: M11 | B74: NGC 6705 | C74: Ammasso dell'Anitra Selvatica | D74: Ammasso aperto | E74: Scudo | F74: 7 | G74: =VLOOKUP(E74,Costellazioni!A:E,2,FALSE) -> Equatoriale | H74: =VLOOKUP(E74,Costellazioni!A:E,3,FALSE) -> 2014-08-01 | I74: =VLOOKUP(E74,Costellazioni!A:E,4,FALSE) -> Estate
A75: M26 | B75: NGC 6694 | D75: Ammasso aperto | E75: Scudo | F75: 9.5 | G75: =VLOOKUP(E75,Costellazioni!A:E,2,FALSE) -> Equatoriale | H75: =VLOOKUP(E75,Costellazioni!A:E,3,FALSE) -> 2014-08-01 | I75: =VLOOKUP(E75,Costellazioni!A:E,4,FALSE) -> Estate
A76: M56 | B76: NGC 6779 | D76: Ammasso globulare | E76: Lira | F76: 9.5 | G76: =VLOOKUP(E76,Costellazioni!A:E,2,FALSE) -> Boreale | H76: =VLOOKUP(E76,Costellazioni!A:E,3,FALSE) -> 2014-08-01 | I76: =VLOOKUP(E76,Costellazioni!A:E,4,FALSE) -> Estate
A77: M57 | B77: NGC 6720 | C77: Nebulosa Anello | D77: Nebulosa planetaria | E77: Lira | F77: 9.5 | G77: =VLOOKUP(E77,Costellazioni!A:E,2,FALSE) -> Boreale | H77: =VLOOKUP(E77,Costellazioni!A:E,3,FALSE) -> 2014-08-01 | I77: =VLOOKUP(E77,Costellazioni!A:E,4,FALSE) -> Estate
A78: M17 | B78: NGC 6618 | C78: Nebulosa Omega | D78: Ammasso con nebulosa | E78: Sagittario | F78: 7 | G78: =VLOOKUP(E78,Costellazioni!A:E,2,FALSE) -> Equatoriale | H78: =VLOOKUP(E78,Costellazioni!A:E,3,FALSE) -> 2014-08-10 | I78: =VLOOKUP(E78,Costellazioni!A:E,4,FALSE) -> Estate
A79: M18 | B79: NGC 6613 | D79: Ammasso aperto | E79: Sagittario | F79: 8 | G79: =VLOOKUP(E79,Costellazioni!A:E,2,FALSE) -> Equatoriale | H79: =VLOOKUP(E79,Costellazioni!A:E,3,FALSE) -> 2014-08-10 | I79: =VLOOKUP(E79,Costellazioni!A:E,4,FALSE) -> Estate
A80: M20 | B80: NGC 6514 | C80: Nebulosa Trifida | D80: Ammasso con nebulosa | E80: Sagittario | F80: 5 | G80: =VLOOKUP(E80,Costellazioni!A:E,2,FALSE) -> Equatoriale | H80: =VLOOKUP(E80,Costellazioni!A:E,3,FALSE) -> 2014-08-10 | I80: =VLOOKUP(E80,Costellazioni!A:E,4,FALSE) -> Estate
A81: M21 | B81: NGC 6531 | D81: Ammasso aperto | E81: Sagittario | F81: 7 | G81: =VLOOKUP(E81,Costellazioni!A:E,2,FALSE) -> Equatoriale | H81: =VLOOKUP(E81,Costellazioni!A:E,3,FALSE) -> 2014-08-10 | I81: =VLOOKUP(E81,Costellazioni!A:E,4,FALSE) -> Estate
A82: M22 | B82: NGC 6656 | D82: Ammasso globulare | E82: Sagittario | F82: 6.5 | G82: =VLOOKUP(E82,Costellazioni!A:E,2,FALSE) -> Equatoriale | H82: =VLOOKUP(E82,Costellazioni!A:E,3,FALSE) -> 2014-08-10 | I82: =VLOOKUP(E82,Costellazioni!A:E,4,FALSE) -> Estate
A83: M23 | B83: NGC 6494 | D83: Ammasso aperto | E83: Sagittario | F83: 6 | G83: =VLOOKUP(E83,Costellazioni!A:E,2,FALSE) -> Equatoriale | H83: =VLOOKUP(E83,Costellazioni!A:E,3,FALSE) -> 2014-08-10 | I83: =VLOOKUP(E83,Costellazioni!A:E,4,FALSE) -> Estate
A84: M24 | B84: NGC 6603 | D84: Asterismo | E84: Sagittario | F84: 3 | G84: =VLOOKUP(E84,Costellazioni!A:E,2,FALSE) -> Equatoriale | H84: =VLOOKUP(E84,Costellazioni!A:E,3,FALSE) -> 2014-08-10 | I84: =VLOOKUP(E84,Costellazioni!A:E,4,FALSE) -> Estate
A85: M25 | B85: Nessuno | D85: Ammasso aperto | E85: Sagittario | F85: 4.9 | G85: =VLOOKUP(E85,Costellazioni!A:E,2,FALSE) -> Equatoriale | H85: =VLOOKUP(E85,Costellazioni!A:E,3,FALSE) -> 2014-08-10 | I85: =VLOOKUP(E85,Costellazioni!A:E,4,FALSE) -> Estate
A86: M28 | B86: NGC 6626 | D86: Ammasso globulare | E86: Sagittario | F86: 8.5 | G86: =VLOOKUP(E86,Costellazioni!A:E,2,FALSE) -> Equatoriale | H86: =VLOOKUP(E86,Costellazioni!A:E,3,FALSE) -> 2014-08-10 | I86: =VLOOKUP(E86,Costellazioni!A:E,4,FALSE) -> Estate
A87: M54 | B87: NGC 6715 | D87: Ammasso globulare | E87: Sagittario | F87: 8.5 | G87: =VLOOKUP(E87,Costellazioni!A:E,2,FALSE) -> Equatoriale | H87: =VLOOKUP(E87,Costellazioni!A:E,3,FALSE) -> 2014-08-10 | I87: =VLOOKUP(E87,Costellazioni!A:E,4,FALSE) -> Estate
A88: M55 | B88: NGC 6809 | D88: Ammasso globulare | E88: Sagittario | F88: 7 | G88: =VLOOKUP(E88,Costellazioni!A:E,2,FALSE) -> Equatoriale | H88: =VLOOKUP(E88,Costellazioni!A:E,3,FALSE) -> 2014-08-10 | I88: =VLOOKUP(E88,Costellazioni!A:E,4,FALSE) -> Estate
A89: M69 | B89: NGC 6637 | D89: Ammasso globulare | E89: Sagittario | F89: 9 | G89: =VLOOKUP(E89,Costellazioni!A:E,2,FALSE) -> Equatoriale | H89: =VLOOKUP(E89,Costellazioni!A:E,3,FALSE) -> 2014-08-10 | I89: =VLOOKUP(E89,Costellazioni!A:E,4,FALSE) -> Estate
A90: M70 | B90: NGC 6681 | D90: Ammasso globulare | E90: Sagittario | F90: 9 | G90: =VLOOKUP(E90,Costellazioni!A:E,2,FALSE) -> Equatoriale | H90: =VLOOKUP(E90,Costellazioni!A:E,3,FALSE) -> 2014-08-10 | I90: =VLOOKUP(E90,Costellazioni!A:E,4,FALSE) -> Estate
A91: M75 | B91: NGC 6864 | D91: Ammasso globulare | E91: Sagittario | F91: 9.5 | G91: =VLOOKUP(E91,Costellazioni!A:E,2,FALSE) -> Equatoriale | H91: =VLOOKUP(E91,Costellazioni!A:E,3,FALSE) -> 2014-08-10 | I91: =VLOOKUP(E91,Costellazioni!A:E,4,FALSE) -> Estate
A92: M8 | B92: NGC 6523 | C92: Nebulosa Laguna | D92: Ammasso con nebulosa | E92: Sagittario | F92: 5 | G92: =VLOOKUP(E92,Costellazioni!A:E,2,FALSE) -> Equatoriale | H92: =VLOOKUP(E92,Costellazioni!A:E,3,FALSE) -> 2014-08-10 | I92: =VLOOKUP(E92,Costellazioni!A:E,4,FALSE) -> Estate
A93: M71 | B93: NGC 6838 | D93: Ammasso globulare | E93: Freccia | F93: 8.5 | G93: =VLOOKUP(E93,Costellazioni!A:E,2,FALSE) -> Equatoriale | H93: =VLOOKUP(E93,Costellazioni!A:E,3,FALSE) -> 2014-08-15 | I93: =VLOOKUP(E93,Costellazioni!A:E,4,FALSE) -> Estate
A94: M29 | B94: NGC 6913 | D94: Ammasso aperto | E94: Cigno | F94: 9 | G94: =VLOOKUP(E94,Costellazioni!A:E,2,FALSE) -> Boreale | H94: =VLOOKUP(E94,Costellazioni!A:E,3,FALSE) -> 2014-08-20 | I94: =VLOOKUP(E94,Costellazioni!A:E,4,FALSE) -> Estate
A95: M39 | B95: NGC 7092 | D95: Ammasso aperto | E95: Cigno | F95: 5.5 | G95: =VLOOKUP(E95,Costellazioni!A:E,2,FALSE) -> Boreale | H95: =VLOOKUP(E95,Costellazioni!A:E,3,FALSE) -> 2014-08-20 | I95: =VLOOKUP(E95,Costellazioni!A:E,4,FALSE) -> Estate
A96: M27 | B96: NGC 6853 | C96: Nebulosa Manubrio | D96: Nebulosa planetaria | E96: Volpetta | F96: 7.5 | G96: =VLOOKUP(E96,Costellazioni!A:E,2,FALSE) -> Equatoriale | H96: =VLOOKUP(E96,Costellazioni!A:E,3,FALSE) -> 2014-08-25 | I96: =VLOOKUP(E96,Costellazioni!A:E,4,FALSE) -> Estate
A97: M30 | B97: NGC 7099 | D97: Ammasso globulare | E97: Capricorno | F97: 8.5 | G97: =VLOOKUP(E97,Costellazioni!A:E,2,FALSE) -> Equatoriale | H97: =VLOOKUP(E97,Costellazioni!A:E,3,FALSE) -> 2014-09-08 | I97: =VLOOKUP(E97,Costellazioni!A:E,4,FALSE) -> Estate
A98: M2 | B98: NGC 7089 | D98: Ammasso globulare | E98: Acquario | F98: 7.5 | G98: =VLOOKUP(E98,Costellazioni!A:E,2,FALSE) -> Equatoriale | H98: =VLOOKUP(E98,Costellazioni!A:E,3,FALSE) -> 2014-09-25 | I98: =VLOOKUP(E98,Costellazioni!A:E,4,FALSE) -> Autunno
A99: M72 | B99: NGC 6981 | D99: Ammasso globulare | E99: Acquario | F99: 10 | G99: =VLOOKUP(E99,Costellazioni!A:E,2,FALSE) -> Equatoriale | H99: =VLOOKUP(E99,Costellazioni!A:E,3,FALSE) -> 2014-09-25 | I99: =VLOOKUP(E99,Costellazioni!A:E,4,FALSE) -> Autunno
A100: M73 | B100: NGC 6994 | C100: Asterismo dell'Aquario | D100: Asterismo | E100: Acquario | F100: 9 | G100: =VLOOKUP(E100,Costellazioni!A:E,2,FALSE) -> Equatoriale | H100: =VLOOKUP(E100,Costellazioni!A:E,3,FALSE) -> 2014-09-25 | I100: =VLOOKUP(E100,Costellazioni!A:E,4,FALSE) -> Autunno
A101: M15 | B101: NGC 7078 | D101: Ammasso globulare | E101: Pegaso | F101: 7.5 | G101: =VLOOKUP(E101,Costellazioni!A:E,2,FALSE) -> Equatoriale | H101: =VLOOKUP(E101,Costellazioni!A:E,3,FALSE) -> 2014-10-01 | I101: =VLOOKUP(E101,Costellazioni!A:E,4,FALSE) -> Autunno
A102: M74 | B102: NGC 628 | D102: Galassia spirale | E102: Pesci | F102: 10.5 | G102: =VLOOKUP(E102,Costellazioni!A:E,2,FALSE) -> Equatoriale | H102: =VLOOKUP(E102,Costellazioni!A:E,3,FALSE) -> 2014-10-25 | I102: =VLOOKUP(E102,Costellazioni!A:E,4,FALSE) -> Autunno
A103: M103 | B103: NGC 581 | D103: Ammasso aperto | E103: Cassiopea | F103: 7 | G103: =VLOOKUP(E103,Costellazioni!A:E,2,FALSE) -> Boreale | H103: =VLOOKUP(E103,Costellazioni!A:E,3,FALSE) -> 2014-11-09 | I103: =VLOOKUP(E103,Costellazioni!A:E,4,FALSE) -> Autunno
A104: M52 | B104: NGC 7654 | D104: Ammasso aperto | E104: Cassiopea | F104: 8 | G104: =VLOOKUP(E104,Costellazioni!A:E,2,FALSE) -> Boreale | H104: =VLOOKUP(E104,Costellazioni!A:E,3,FALSE) -> 2014-11-09 | I104: =VLOOKUP(E104,Costellazioni!A:E,4,FALSE) -> Autunno
A105: M110 | B105: NGC 205 | D105: Galassia ellittica | E105: Andromeda | F105: 10 | G105: =VLOOKUP(E105,Costellazioni!A:E,2,FALSE) -> Boreale | H105: =VLOOKUP(E105,Costellazioni!A:E,3,FALSE) -> 2014-11-10 | I105: =VLOOKUP(E105,Costellazioni!A:E,4,FALSE) -> Autunno
A106: M31 | B106: NGC 224 | C106: Galassia di Andromeda | D106: Galassia spirale | E106: Andromeda | F106: 4.5 | G106: =VLOOKUP(E106,Costellazioni!A:E,2,FALSE) -> Boreale | H106: =VLOOKUP(E106,Costellazioni!A:E,3,FALSE) -> 2014-11-10 | I106: =VLOOKUP(E106,Costellazioni!A:E,4,FALSE) -> Autunno
A107: M32 | B107: NGC 221 | D107: Galassia ellittica nana | E107: Andromeda | F107: 10 | G107: =VLOOKUP(E107,Costellazioni!A:E,2,FALSE) -> Boreale | H107: =VLOOKUP(E107,Costellazioni!A:E,3,FALSE) -> 2014-11-10 | I107: =VLOOKUP(E107,Costellazioni!A:E,4,FALSE) -> Autunno
A108: M77 | B108: NGC 1068 | D108: Galassia spirale | E108: Balena | F108: 10.5 | G108: =VLOOKUP(E108,Costellazioni!A:E,2,FALSE) -> Equatoriale | H108: =VLOOKUP(E108,Costellazioni!A:E,3,FALSE) -> 2014-11-10 | I108: =VLOOKUP(E108,Costellazioni!A:E,4,FALSE) -> Autunno
A109: M33 | B109: NGC 598 | C109: Galassia del Triangolo | D109: Galassia spirale | E109: Triangolo | F109: 7 | G109: =VLOOKUP(E109,Costellazioni!A:E,2,FALSE) -> Boreale | H109: =VLOOKUP(E109,Costellazioni!A:E,3,FALSE) -> 2014-11-25 | I109: =VLOOKUP(E109,Costellazioni!A:E,4,FALSE) -> Autunno
A110: M34 | B110: NGC 1039 | D110: Ammasso aperto | E110: Perseo | F110: 6 | G110: =VLOOKUP(E110,Costellazioni!A:E,2,FALSE) -> Boreale | H110: =VLOOKUP(E110,Costellazioni!A:E,3,FALSE) -> 2014-12-10 | I110: =VLOOKUP(E110,Costellazioni!A:E,4,FALSE) -> Autunno
A111: M76 | B111: NGC 650 | C111: Piccola Campana Muta | D111: Nebulosa planetaria | E111: Perseo | F111: 12 | G111: =VLOOKUP(E111,Costellazioni!A:E,2,FALSE) -> Boreale | H111: =VLOOKUP(E111,Costellazioni!A:E,3,FALSE) -> 2014-12-10 | I111: =VLOOKUP(E111,Costellazioni!A:E,4,FALSE) -> Autunno

Sheet Caldwell
A1: CATALOGO | B1: NGC | C1: Nome comune | D1: Tipo di oggetto | E1: Costellazione | F1: M.A. | G1: Zona | H1: Culmine | I1: Stagione | J1: Dim [arcsec] | K1: A. R. [H.m.] | L1: Dec. [° '] | M1: =TODAY() -> 2014-06-27
A2: C41 | B2: MELOTTE 25 | C2: THE HYDES | D2: Ammasso aperto | E2: Toro | F2: 0.5 | G2: =VLOOKUP(E2,Costellazioni!A:E,2,FALSE) -> Equatoriale | H2: =VLOOKUP(E2,Costellazioni!A:E,3,FALSE) -> 2014-01-01 | I2: =VLOOKUP(E2,Costellazioni!A:E,4,FALSE) -> Inverno | J2: 330 | K2: 04 27 | L2: + 16 00
A3: C73 | B3: NGC 1851 | D3: Ammasso globulare | E3: Colomba | F3: 7.1 | G3: =VLOOKUP(E3,Costellazioni!A:E,2,FALSE) -> Australe | H3: =VLOOKUP(E3,Costellazioni!A:E,3,FALSE) -> 2014-01-16 | I3: =VLOOKUP(E3,Costellazioni!A:E,4,FALSE) -> Inverno | J3: 11 | K3: 05 41 | L3: - 40 03
A4: C103 | B4: NGC 2070 | C4: NEBULOSA TARANTOLA | D4: Nebulosa | E4: Dorado | F4: 8 | G4: =VLOOKUP(E4,Costellazioni!A:E,2,FALSE) -> Australe | H4: =VLOOKUP(E4,Costellazioni!A:E,3,FALSE) -> 2014-01-16 | I4: =VLOOKUP(E4,Costellazioni!A:E,4,FALSE) -> Inverno | J4: 40 x 25 | K4: 05 38 | L4: - 69 05
A5: C31 | B5: IC 405 | C5: FLAMING STAR NEBULA | D5: Nebulosa a emissione | E5: Auriga | F5: 10.0 | G5: =VLOOKUP(E5,Costellazioni!A:E,2,FALSE) -> Boreale | H5: =VLOOKUP(E5,Costellazioni!A:E,3,FALSE) -> 2014-01-20 | I5: =VLOOKUP(E5,Costellazioni!A:E,4,FALSE) -> Inverno | J5: 10 x 30 | K5: 05 16 | L5: + 34 16
A6: C5 | B6: IC 342 | D6: Galassia spirale | E6: Giraffa | F6: 9.1 | G6: =VLOOKUP(E6,Costellazioni!A:E,2,FALSE) -> Boreale | H6: =VLOOKUP(E6,Costellazioni!A:E,3,FALSE) -> 2014-01-23 | I6: =VLOOKUP(E6,Costellazioni!A:E,4,FALSE) -> Inverno | J6: 21.4 x 20.9 | K6: 03 46 | L6: + 68 05
A7: C7 | B7: NGC 2403 | D7: Galassia spirale | E7: Giraffa | F7: 8.9 | G7: =VLOOKUP(E7,Costellazioni!A:E,2,FALSE) -> Boreale | H7: =VLOOKUP(E7,Costellazioni!A:E,3,FALSE) -> 2014-01-23 | I7: =VLOOKUP(E7,Costellazioni!A:E,4,FALSE) -> Inverno | J7: 21.9 x 12.3 | K7: 07 36 | L7: + 65 36
A8: C58 | B8: NGC 2360 | D8: Ammasso aperto | E8: Cane Maggiore | F8: 7.2 | G8: =VLOOKUP(E8,Costellazioni!A:E,2,FALSE) -> Equatoriale | H8: =VLOOKUP(E8,Costellazioni!A:E,3,FALSE) -> 2014-02-01 | I8: =VLOOKUP(E8,Costellazioni!A:E,4,FALSE) -> Inverno | J8: 13 | K8: 07 17 | L8: - 17 37
A9: C64 | B9: NGC 2362 | D9: Ammasso aperto | E9: Cane Maggiore | F9: 4.1 | G9: =VLOOKUP(E9,Costellazioni!A:E,2,FALSE) -> Equatoriale | H9: =VLOOKUP(E9,Costellazioni!A:E,3,FALSE) -> 2014-02-01 | I9: =VLOOKUP(E9,Costellazioni!A:E,4,FALSE) -> Inverno | J9: 8 | K9: 07 18 | L9: - 24 57
A10: C39 | B10: NGC 2392 | C10: ESKIMO GALAXI | D10: Nebulosa planetaria | E10: Gemelli | F10: 10.1 | G10: =VLOOKUP(E10,Costellazioni!A:E,2,FALSE) -> Equatoriale | H10: =VLOOKUP(E10,Costellazioni!A:E,3,FALSE) -> 2014-02-05 | I10: =VLOOKUP(E10,Costellazioni!A:E,4,FALSE) -> Inverno | J10: 48 x 48 | K10: 07 29 | L10: + 20 54
A11: C46 | B11: NGC 2261 | C11: HUBBLE'S VARIABLE NEBULA | D11: Nebulosa a riflessione | E11: Unicorno | F11: 9 | G11: =VLOOKUP(E11,Costellazioni!A:E,2,FALSE) -> Equatoriale | H11: =VLOOKUP(E11,Costellazioni!A:E,3,FALSE) -> 2014-02-05 | I11: =VLOOKUP(E11,Costellazioni!A:E,4,FALSE) -> Inverno | J11: 2 x 1 | K11: 06 39 | L11: + 08 44
A12: C49 | B12: NGC 2237-9 | C12: NEBULOSA ROSETTA | D12: Nebulosa diffusa | E12: Unicorno | F12: 4.8 | G12: =VLOOKUP(E12,Costellazioni!A:E,2,FALSE) -> Equatoriale | H12: =VLOOKUP(E12,Costellazioni!A:E,3,FALSE) -> 2014-02-05 | I12: =VLOOKUP(E12,Costellazioni!A:E,4,FALSE) -> Inverno | J12: 80 x 60 | K12: 06 32 | L12: + 05 03
A13: C50 | B13: NGC 2244 | D13: Ammasso aperto | E13: Unicorno | F13: 4.8 | G13: =VLOOKUP(E13,Costellazioni!A:E,2,FALSE) -> Equatoriale | H13: =VLOOKUP(E13,Costellazioni!A:E,3,FALSE) -> 2014-02-05 | I13: =VLOOKUP(E13,Costellazioni!A:E,4,FALSE) -> Inverno | J13: 24 | K13: 06 31 | L13: + 04 57
A14: C54 | B14: NGC 2506 | D14: Ammasso aperto | E14: Unicorno | F14: 7.6 | G14: =VLOOKUP(E14,Costellazioni!A:E,2,FALSE) -> Equatoriale | H14: =VLOOKUP(E14,Costellazioni!A:E,3,FALSE) -> 2014-02-05 | I14: =VLOOKUP(E14,Costellazioni!A:E,4,FALSE) -> Inverno | J14: 8 | K14: 08 00 | L14: - 10 56
A15: C37 | B15: NGC 6885 | D15: Ammasso aperto | E15: Pesce volante | F15: 8.2 | G15: =VLOOKUP(E15,Costellazioni!A:E,2,FALSE) -> Australe | H15: =VLOOKUP(E15,Costellazioni!A:E,3,FALSE) -> 2014-02-17 | I15: =VLOOKUP(E15,Costellazioni!A:E,4,FALSE) -> Inverno | J15: 18 | K15: 20 12 | L15: + 26 29
A16: C71 | B16: NGC 2477 | D16: Ammasso aperto | E16: Poppa | F16: 5.8 | G16: =VLOOKUP(E16,Costellazioni!A:E,2,FALSE) -> Australe | H16: =VLOOKUP(E16,Costellazioni!A:E,3,FALSE) -> 2014-02-17 | I16: =VLOOKUP(E16,Costellazioni!A:E,4,FALSE) -> Inverno | J16: 27 | K16: 07 52 | L16: - 38 33
A17: C25 | B17: NGC 2419 | D17: Ammasso globulare | E17: Lince | F17: 9.06 | G17: =VLOOKUP(E17,Costellazioni!A:E,2,FALSE) -> Boreale | H17: =VLOOKUP(E17,Costellazioni!A:E,3,FALSE) -> 2014-02-19 | I17: =VLOOKUP(E17,Costellazioni!A:E,4,FALSE) -> Inverno | J17: 6 | K17: 07 38 | L17: + 38 53
A18: C90 | B18: NGC 2867 | D18: Nebulosa planetaria | E18: Carena | F18: 9.7 | G18: =VLOOKUP(E18,Costellazioni!A:E,2,FALSE) -> Australe | H18: =VLOOKUP(E18,Costellazioni!A:E,3,FALSE) -> 2014-03-02 | I18: =VLOOKUP(E18,Costellazioni!A:E,4,FALSE) -> Inverno | J18: 12 | K18: 09 21 | L18: - 58 18
A19: C91 | B19: NGC 3532 | C19: AMMASSO POZZO DEI DESIDERI | D19: Ammasso aperto | E19: Carena | F19: 3.0 | G19: =VLOOKUP(E19,Costellazioni!A:E,2,FALSE) -> Australe | H19: =VLOOKUP(E19,Costellazioni!A:E,3,FALSE) -> 2014-03-02 | I19: =VLOOKUP(E19,Costellazioni!A:E,4,FALSE) -> Inverno | J19: 50 | K19: 11 06 | L19: - 58 40
A20: C92 | B20: NGC 3372 | C20: NEBULOSA DELLA CARENA | D20: Nebulosa a emissione | E20: Carena | F20: 3.0 | G20: =VLOOKUP(E20,Costellazioni!A:E,2,FALSE) -> Australe | H20: =VLOOKUP(E20,Costellazioni!A:E,3,FALSE) -> 2014-03-02 | I20: =VLOOKUP(E20,Costellazioni!A:E,4,FALSE) -> Inverno | J20: 120 x 120 | K20: 10 45 | L20: - 58 52
A21: C96 | B21: NGC 2516 | D21: Ammasso aperto | E21: Carena | F21: 3.3 | G21: =VLOOKUP(E21,Costellazioni!A:E,2,FALSE) -> Australe | H21: =VLOOKUP(E21,Costellazioni!A:E,3,FALSE) -> 2014-03-02 | I21: =VLOOKUP(E21,Costellazioni!A:E,4,FALSE) -> Inverno | J21: 30 | K21: 07 58 | L21: - 60 48
A22: C102 | B22: IC 2602 | C22: PLEIADI DEL SUD | D22: Ammasso con nebulosa | E22: Carena | F22: 1.9 | G22: =VLOOKUP(E22,Costellazioni!A:E,2,FALSE) -> Australe | H22: =VLOOKUP(E22,Costellazioni!A:E,3,FALSE) -> 2014-03-02 | I22: =VLOOKUP(E22,Costellazioni!A:E,4,FALSE) -> Inverno | J22: 50 | K22: 10 43 | L22: - 64 20
A23: C74 | B23: NGC 3132 | C23: NEBULOSA ANELLO DEL SUD | D23: Nebulosa planetaria | E23: Vele | F23: 9.9 | G23: =VLOOKUP(E23,Costellazioni!A:E,2,FALSE) -> Australe | H23: =VLOOKUP(E23,Costellazioni!A:E,3,FALSE) -> 2014-03-15 | I23: =VLOOKUP(E23,Costellazioni!A:E,4,FALSE) -> Inverno | J23: 84 x 53 | K23: 10 07 | L23: - 40 26
A24: C79 | B24: NGC 3201 | D24: Ammasso globulare | E24: Vele | F24: 6.8 | G24: =VLOOKUP(E24,Costellazioni!A:E,2,FALSE) -> Australe | H24: =VLOOKUP(E24,Costellazioni!A:E,3,FALSE) -> 2014-03-15 | I24: =VLOOKUP(E24,Costellazioni!A:E,4,FALSE) -> Inverno | J24: 18 | K24: 10 17 | L24: - 46 25
A25: C85 | B25: IC 2391 | D25: Ammasso aperto | E25: Vele | F25: 2.6 | G25: =VLOOKUP(E25,Costellazioni!A:E,2,FALSE) -> Australe | H25: =VLOOKUP(E25,Costellazioni!A:E,3,FALSE) -> 2014-03-15 | I25: =VLOOKUP(E25,Costellazioni!A:E,4,FALSE) -> Inverno | J25: 50 | K25: 08 40 | L25: - 53 04
A26: C53 | B26: NGC 3115 | C26: GALASSIA FUSO | D26: Galassia lenticolare | E26: Sestante | F26: 9.9 | G26: =VLOOKUP(E26,Costellazioni!A:E,2,FALSE) -> Equatoriale | H26: =VLOOKUP(E26,Costellazioni!A:E,3,FALSE) -> 2014-03-22 | I26: =VLOOKUP(E26,Costellazioni!A:E,4,FALSE) -> Primavera | J26: 7.6 x 2.52 | K26: 10 05 | L26: - 07 43
A27: C109 | B27: NGC 3195 | D27: Nebulosa planetaria | E27: Camaleonte | F27: 11.5 | G27: =VLOOKUP(E27,Costellazioni!A:E,2,FALSE) -> Australe | H27: =VLOOKUP(E27,Costellazioni!A:E,3,FALSE) -> 2014-03-30 | I27: =VLOOKUP(E27,Costellazioni!A:E,4,FALSE) -> Primavera | J27: 40 x 30 | K27: 10 09 | L27: - 80 51
A28: C40 | B28: NGC 3626 | D28: Galassia spirale | E28: Leone | F28: 10.9 | G28: =VLOOKUP(E28,Costellazioni!A:E,2,FALSE) -> Equatoriale | H28: =VLOOKUP(E28,Costellazioni!A:E,3,FALSE) -> 2014-04-01 | I28: =VLOOKUP(E28,Costellazioni!A:E,4,FALSE) -> Primavera | J28: 2.7 x 1.9 | K28: 11 20 | L28: + 18 21
A29: C59 | B29: NGC 3242 | C29: SPETTRO DI GIOVE | D29: Nebulosa planetaria | E29: Idra | F29: 8.6 | G29: =VLOOKUP(E29,Costellazioni!A:E,2,FALSE) -> Equatoriale | H29: =VLOOKUP(E29,Costellazioni!A:E,3,FALSE) -> 2014-04-15 | I29: =VLOOKUP(E29,Costellazioni!A:E,4,FALSE) -> Primavera | J29: 25 | K29: 10 24 | L29: - 18 38
A30: C66 | B30: NGC 5694 | D30: Ammasso globulare | E30: Idra | F30: 9.0 | G30: =VLOOKUP(E30,Costellazioni!A:E,2,FALSE) -> Equatoriale | H30: =VLOOKUP(E30,Costellazioni!A:E,3,FALSE) -> 2014-04-15 | I30: =VLOOKUP(E30,Costellazioni!A:E,4,FALSE) -> Primavera | J30: 3.6 | K30: 14 39 | L30: - 26 32
A31: C60 | B31: NGC 4038 | C31: GALASSIA AD ANTENNE | D31: Galassia irregolare | E31: Corvo | F31: 11.1 | G31: =VLOOKUP(E31,Costellazioni!A:E,2,FALSE) -> Equatoriale | H31: =VLOOKUP(E31,Costellazioni!A:E,3,FALSE) -> 2014-04-20 | I31: =VLOOKUP(E31,Costellazioni!A:E,4,FALSE) -> Primavera | J31: 5.2x3.1x3.1 | K31: 13 01 | L31: - 18 52
A32: C61 | B32: NGC 4039 | C32: GALASSIA AD ANTENNE | D32: Galassia irregolare | E32: Corvo | F32: 11.1 | G32: =VLOOKUP(E32,Costellazioni!A:E,2,FALSE) -> Equatoriale | H32: =VLOOKUP(E32,Costellazioni!A:E,3,FALSE) -> 2014-04-20 | I32: =VLOOKUP(E32,Costellazioni!A:E,4,FALSE) -> Primavera | J32: 5.2x3.1x3.1 | K32: 13 01 | L32: - 18 52
A33: C94 | B33: NGC 4755 | C33: SCRIGNO DI GIOIE | D33: Ammasso aperto | E33: Croce del Sud | F33: 4.2 | G33: =VLOOKUP(E33,Costellazioni!A:E,2,FALSE) -> Australe | H33: =VLOOKUP(E33,Costellazioni!A:E,3,FALSE) -> 2014-04-27 | I33: =VLOOKUP(E33,Costellazioni!A:E,4,FALSE) -> Primavera | J33: 10 | K33: 12 43 | L33: - 60 20
A34: C98 | B34: NGC 4609 | D34: Ammasso aperto | E34: Croce del Sud | F34: 6.9 | G34: =VLOOKUP(E34,Costellazioni!A:E,2,FALSE) -> Australe | H34: =VLOOKUP(E34,Costellazioni!A:E,3,FALSE) -> 2014-04-27 | I34: =VLOOKUP(E34,Costellazioni!A:E,4,FALSE) -> Primavera | J34: 5 | K34: 12 43 | L34: - 63 00
A35: C99 | B35: N. C. | C35: COALSACK DARK NEBULA | D35: Nebulosa | E35: Croce del Sud | F35: N.C. | G35: =VLOOKUP(E35,Costellazioni!A:E,2,FALSE) -> Australe | H35: =VLOOKUP(E35,Costellazioni!A:E,3,FALSE) -> 2014-04-27 | I35: =VLOOKUP(E35,Costellazioni!A:E,4,FALSE) -> Primavera | J35: 7 x 5 | K35: 12 50 | L35: - 62 30
A36: C77 | B36: NGC 5128 | C36: CENTAURUS A | D36: Galassia peculiare | E36: Centauro | F36: 7.0 | G36: =VLOOKUP(E36,Costellazioni!A:E,2,FALSE) -> Australe | H36: =VLOOKUP(E36,Costellazioni!A:E,3,FALSE) -> 2014-04-30 | I36: =VLOOKUP(E36,Costellazioni!A:E,4,FALSE) -> Primavera | J36: 18 x 14 | K36: 13 25 | L36: - 43 01
A37: C80 | B37: NGC 5139 | D37: Ammasso globulare | E37: Centauro | F37: 3.7 | G37: =VLOOKUP(E37,Costellazioni!A:E,2,FALSE) -> Australe | H37: =VLOOKUP(E37,Costellazioni!A:E,3,FALSE) -> 2014-04-30 | I37: =VLOOKUP(E37,Costellazioni!A:E,4,FALSE) -> Primavera | J37: 36.3 | K37: 13 26 | L37: - 47 29
A38: C83 | B38: NGC 4945 | D38: Galassia spirale barrata | E38: Centauro | F38: 8.9 | G38: =VLOOKUP(E38,Costellazioni!A:E,2,FALSE) -> Australe | H38: =VLOOKUP(E38,Costellazioni!A:E,3,FALSE) -> 2014-04-30 | I38: =VLOOKUP(E38,Costellazioni!A:E,4,FALSE) -> Primavera | J38: 20.0 x 3.8 | K38: 13 05 | L38: - 49 28
A39: C84 | B39: NGC 5286 | D39: Ammasso globulare | E39: Centauro | F39: 7.6 | G39: =VLOOKUP(E39,Costellazioni!A:E,2,FALSE) -> Australe | H39: =VLOOKUP(E39,Costellazioni!A:E,3,FALSE) -> 2014-04-30 | I39: =VLOOKUP(E39,Costellazioni!A:E,4,FALSE) -> Primavera | J39: 9 | K39: 13 46 | L39: - 51 22
A40: C97 | B40: NGC 3766 | D40: Ammasso aperto | E40: Centauro | F40: 5.3 | G40: =VLOOKUP(E40,Costellazioni!A:E,2,FALSE) -> Australe | H40: =VLOOKUP(E40,Costellazioni!A:E,3,FALSE) -> 2014-04-30 | I40: =VLOOKUP(E40,Costellazioni!A:E,4,FALSE) -> Primavera | J40: 12 | K40: 11 36 | L40: - 61 37
A41: C100 | B41: IC 2944 | C41: RUNNING CHICKEN DARK NEBULA | D41: Ammasso con nebulosa | E41: Centauro | F41: 4.5 | G41: =VLOOKUP(E41,Costellazioni!A:E,2,FALSE) -> Australe | H41: =VLOOKUP(E41,Costellazioni!A:E,3,FALSE) -> 2014-04-30 | I41: =VLOOKUP(E41,Costellazioni!A:E,4,FALSE) -> Primavera | J41: 75 | K41: 11 36 | L41: - 63 02
A42: C105 | B42: NGC 4833 | D42: Ammasso globulare | E42: Mosca | F42: 6.9 | G42: =VLOOKUP(E42,Costellazioni!A:E,2,FALSE) -> Australe | H42: =VLOOKUP(E42,Costellazioni!A:E,3,FALSE) -> 2014-04-30 | I42: =VLOOKUP(E42,Costellazioni!A:E,4,FALSE) -> Primavera | J42: 13.5 | K42: 12 59 | L42: - 70 53
A43: C108 | B43: NGC 4372 | D43: Ammasso globulare | E43: Mosca | F43: 7.8 | G43: =VLOOKUP(E43,Costellazioni!A:E,2,FALSE) -> Australe | H43: =VLOOKUP(E43,Costellazioni!A:E,3,FALSE) -> 2014-04-30 | I43: =VLOOKUP(E43,Costellazioni!A:E,4,FALSE) -> Primavera | J43: 18.6 | K43: 12 25 | L43: - 72 40
A44: C35 | B44: NGC 4889 | D44: Galassia ellittica | E44: Chioma di Berenice | F44: 11.4 | G44: =VLOOKUP(E44,Costellazioni!A:E,2,FALSE) -> Equatoriale | H44: =VLOOKUP(E44,Costellazioni!A:E,3,FALSE) -> 2014-05-02 | I44: =VLOOKUP(E44,Costellazioni!A:E,4,FALSE) -> Primavera | J44: 1.49 x 17.8 | K44: 13 00 | L44: + 27 58
A45: C36 | B45: NGC 4559 | D45: Galassia spirale | E45: Chioma di Berenice | F45: 9.8 | G45: =VLOOKUP(E45,Costellazioni!A:E,2,FALSE) -> Equatoriale | H45: =VLOOKUP(E45,Costellazioni!A:E,3,FALSE) -> 2014-05-02 | I45: =VLOOKUP(E45,Costellazioni!A:E,4,FALSE) -> Primavera | J45: 10.7 x 4.4 | K45: 12 36 | L45: + 27 58
A46: C38 | B46: NGC 4565 | C46: NEEDLE GALAXI | D46: Galassia spirale | E46: Chioma di Berenice | F46: 9.7 | G46: =VLOOKUP(E46,Costellazioni!A:E,2,FALSE) -> Equatoriale | H46: =VLOOKUP(E46,Costellazioni!A:E,3,FALSE) -> 2014-05-02 | I46: =VLOOKUP(E46,Costellazioni!A:E,4,FALSE) -> Primavera | J46: 15.8 x 2.1 | K46: 12 36 | L46: + 26 00
A47: C21 | B47: NGC 4449 | D47: Galassia irregolare | E47: Cani da Caccia | F47: 9.8 | G47: =VLOOKUP(E47,Costellazioni!A:E,2,FALSE) -> Boreale | H47: =VLOOKUP(E47,Costellazioni!A:E,3,FALSE) -> 2014-05-07 | I47: =VLOOKUP(E47,Costellazioni!A:E,4,FALSE) -> Primavera | J47: 6.2 x 4.4 | K47: 12 28 | L47: + 44 06
A48: C26 | B48: NGC 4244 | D48: Galassia spirale | E48: Cani da Caccia | F48: 10.0 | G48: =VLOOKUP(E48,Costellazioni!A:E,2,FALSE) -> Boreale | H48: =VLOOKUP(E48,Costellazioni!A:E,3,FALSE) -> 2014-05-07 | I48: =VLOOKUP(E48,Costellazioni!A:E,4,FALSE) -> Primavera | J48: 16.6 x 1.9 | K48: 12 17 | L48: + 37 48
A49: C29 | B49: NGC 5005 | D49: Galassia spirale | E49: Cani da Caccia | F49: 10.3 | G49: =VLOOKUP(E49,Costellazioni!A:E,2,FALSE) -> Boreale | H49: =VLOOKUP(E49,Costellazioni!A:E,3,FALSE) -> 2014-05-07 | I49: =VLOOKUP(E49,Costellazioni!A:E,4,FALSE) -> Primavera | J49: 5.8 x 2.8 | K49: 13 10 | L49: + 37 04
A50: C32 | B50: NGC 4631 | D50: Galassia spirale | E50: Cani da Caccia | F50: 9.1 | G50: =VLOOKUP(E50,Costellazioni!A:E,2,FALSE) -> Boreale | H50: =VLOOKUP(E50,Costellazioni!A:E,3,FALSE) -> 2014-05-07 | I50: =VLOOKUP(E50,Costellazioni!A:E,4,FALSE) -> Primavera | J50: 15.5 x 2.7 | K50: 12 42 | L50: + 32 32
A51: C48 | B51: NGC 2775 | D51: Galassia spirale | E51: Cani da Caccia | F51: 10.3 | G51: =VLOOKUP(E51,Costellazioni!A:E,2,FALSE) -> Boreale | H51: =VLOOKUP(E51,Costellazioni!A:E,3,FALSE) -> 2014-05-07 | I51: =VLOOKUP(E51,Costellazioni!A:E,4,FALSE) -> Primavera | J51: 4.3 x 3.3 | K51: 09 10 | L51: + 07 02
A52: C52 | B52: NGC 4697 | D52: Galassia ellittica | E52: Vergine | F52: 9.2 | G52: =VLOOKUP(E52,Costellazioni!A:E,2,FALSE) -> Equatoriale | H52: =VLOOKUP(E52,Costellazioni!A:E,3,FALSE) -> 2014-05-10 | I52: =VLOOKUP(E52,Costellazioni!A:E,4,FALSE) -> Primavera | J52: 7.2 x 4.7 | K52: 12 48 | L52: - 05 48
A53: C3 | B53: NGC 4236 | D53: Galassia spirale barrata | E53: Dragone | F53: 9.9 | G53: =VLOOKUP(E53,Costellazioni!A:E,2,FALSE) -> Boreale | H53: =VLOOKUP(E53,Costellazioni!A:E,3,FALSE) -> 2014-05-25 | I53: =VLOOKUP(E53,Costellazioni!A:E,4,FALSE) -> Primavera | J53: 21.9 x 7.2 | K53: 12 16 | L53: + 69 27
A54: C6 | B54: NGC 6543 | C54: NEBULOSA OCCHI DI GATTO | D54: Nebulosa planetaria | E54: Dragone | F54: 9.8 | G54: =VLOOKUP(E54,Costellazioni!A:E,2,FALSE) -> Boreale | H54: =VLOOKUP(E54,Costellazioni!A:E,3,FALSE) -> 2014-05-25 | I54: =VLOOKUP(E54,Costellazioni!A:E,4,FALSE) -> Primavera | J54: 20.2 | K54: 17 58 | L54: + 66 37
A55: C88 | B55: NGC 5823 | D55: Ammasso aperto | E55: Compasso | F55: 7.9 | G55: =VLOOKUP(E55,Costellazioni!A:E,2,FALSE) -> Australe | H55: =VLOOKUP(E55,Costellazioni!A:E,3,FALSE) -> 2014-05-29 | I55: =VLOOKUP(E55,Costellazioni!A:E,4,FALSE) -> Primavera | J55: 10 | K55: 15 05 | L55: - 55 36
A56: C45 | B56: NGC 5248 | D56: Galassia spirale barrata | E56: Boote | F56: 10.0 | G56: =VLOOKUP(E56,Costellazioni!A:E,2,FALSE) -> Equatoriale | H56: =VLOOKUP(E56,Costellazioni!A:E,3,FALSE) -> 2014-06-02 | I56: =VLOOKUP(E56,Costellazioni!A:E,4,FALSE) -> Primavera | J56: 6.2 x 4.5 | K56: 17 37 | L56: + 08 53
A57: C81 | B57: NGC 6352 | D57: Ammasso globulare | E57: Altare | F57: 7.8 | G57: =VLOOKUP(E57,Costellazioni!A:E,2,FALSE) -> Australe | H57: =VLOOKUP(E57,Costellazioni!A:E,3,FALSE) -> 2014-06-10 | I57: =VLOOKUP(E57,Costellazioni!A:E,4,FALSE) -> Primavera | J57: 7.1 | K57: 17 25 | L57: - 48 25
A58: C82 | B58: NGC 6193 | D58: Ammasso aperto | E58: Altare | F58: 5.2 | G58: =VLOOKUP(E58,Costellazioni!A:E,2,FALSE) -> Australe | H58: =VLOOKUP(E58,Costellazioni!A:E,3,FALSE) -> 2014-06-10 | I58: =VLOOKUP(E58,Costellazioni!A:E,4,FALSE) -> Primavera | J58: 14 | K58: 16 41 | L58: - 48 46
A59: C86 | B59: NGC 6397 | D59: Ammasso globulare | E59: Altare | F59: 5.3 | G59: =VLOOKUP(E59,Costellazioni!A:E,2,FALSE) -> Australe | H59: =VLOOKUP(E59,Costellazioni!A:E,3,FALSE) -> 2014-06-10 | I59: =VLOOKUP(E59,Costellazioni!A:E,4,FALSE) -> Primavera | J59: 25.7 | K59: 17 40 | L59: - 53 40
A60: C89 | B60: NGC 6067 | D60: Ammasso aperto | E60: Regolo | F60: 5.6 | G60: =VLOOKUP(E60,Costellazioni!A:E,2,FALSE) -> Australe | H60: =VLOOKUP(E60,Costellazioni!A:E,3,FALSE) -> 2014-06-18 | I60: =VLOOKUP(E60,Costellazioni!A:E,4,FALSE) -> Primavera | J60: 12 | K60: 16 13 | L60: - 54 13
A61: C107 | B61: NGC 6101 | D61: Ammasso globulare | E61: Uccello del paradiso | F61: 9.2 | G61: =VLOOKUP(E61,Costellazioni!A:E,2,FALSE) -> Australe | H61: =VLOOKUP(E61,Costellazioni!A:E,3,FALSE) -> 2014-06-20 | I61: =VLOOKUP(E61,Costellazioni!A:E,4,FALSE) -> Primavera | J61: 10.7 | K61: 16 25 | L61: - 72 12
A62: C95 | B62: NGC 6025 | D62: Ammasso aperto | E62: Triangolo Australe | F62: 5.1 | G62: =VLOOKUP(E62,Costellazioni!A:E,2,FALSE) -> Australe | H62: =VLOOKUP(E62,Costellazioni!A:E,3,FALSE) -> 2014-06-22 | I62: =VLOOKUP(E62,Costellazioni!A:E,4,FALSE) -> Estate | J62: 12 | K62: 16 03 | L62: - 60 30
A63: C69 | B63: NGC 6302 | C63: NEBULOSA FARFALLA | D63: Nebulosa planetaria | E63: Scorpione | F63: 7.1 | G63: =VLOOKUP(E63,Costellazioni!A:E,2,FALSE) -> Equatoriale | H63: =VLOOKUP(E63,Costellazioni!A:E,3,FALSE) -> 2014-07-03 | I63: =VLOOKUP(E63,Costellazioni!A:E,4,FALSE) -> Estate | J63: 3 | K63: 17 13 | L63: - 37 06
A64: C75 | B64: NGC 6124 | D64: Ammasso aperto | E64: Scorpione | F64: 5.8 | G64: =VLOOKUP(E64,Costellazioni!A:E,2,FALSE) -> Equatoriale | H64: =VLOOKUP(E64,Costellazioni!A:E,3,FALSE) -> 2014-07-03 | I64: =VLOOKUP(E64,Costellazioni!A:E,4,FALSE) -> Estate | J64: 40 | K64: 16 25 | L64: - 40 39
A65: C76 | B65: NGC 6231 | D65: Ammasso aperto | E65: Scorpione | F65: 2.6 | G65: =VLOOKUP(E65,Costellazioni!A:E,2,FALSE) -> Equatoriale | H65: =VLOOKUP(E65,Costellazioni!A:E,3,FALSE) -> 2014-07-03 | I65: =VLOOKUP(E65,Costellazioni!A:E,4,FALSE) -> Estate | J65: 15 | K65: 16 54 | L65: - 41 49
A66: C68 | B66: NGC 6729 | D66: Nebulosa a riflessione | E66: Corona Australe | F66: 9.5 | G66: =VLOOKUP(E66,Costellazioni!A:E,2,FALSE) -> Australe | H66: =VLOOKUP(E66,Costellazioni!A:E,3,FALSE) -> 2014-07-30 | I66: =VLOOKUP(E66,Costellazioni!A:E,4,FALSE) -> Estate | J66: 25 | K66: 19 01 | L66: - 36 57
A67: C78 | B67: NGC 6541 | D67: Ammasso globulare | E67: Corona Australe | F67: 6.3 | G67: =VLOOKUP(E67,Costellazioni!A:E,2,FALSE) -> Australe | H67: =VLOOKUP(E67,Costellazioni!A:E,3,FALSE) -> 2014-07-30 | I67: =VLOOKUP(E67,Costellazioni!A:E,4,FALSE) -> Estate | J67: 13 | K67: 18 08 | L67: - 43 43
A68: C57 | B68: NGC 6822 | C68: GALASSIA DI BARNARD | D68: Galassia irregolare | E68: Sagittario | F68: 9.3 | G68: =VLOOKUP(E68,Costellazioni!A:E,2,FALSE) -> Equatoriale | H68: =VLOOKUP(E68,Costellazioni!A:E,3,FALSE) -> 2014-08-10 | I68: =VLOOKUP(E68,Costellazioni!A:E,4,FALSE) -> Estate | J68: 15.5 x 13.5 | K68: 19 44 | L68: - 14 47
A69: C93 | B69: NGC 6752 | D69: Ammasso globulare | E69: Pavone | F69: 20 | G69: =VLOOKUP(E69,Costellazioni!A:E,2,FALSE) -> Australe | H69: =VLOOKUP(E69,Costellazioni!A:E,3,FALSE) -> 2014-08-14 | I69: =VLOOKUP(E69,Costellazioni!A:E,4,FALSE) -> Estate | J69: 20 | K69: 19 10 | L69: - 59 59
A70: C101 | B70: NGC 6744 | D70: Galassia spirale barrata | E70: Pavone | F70: 8.8 | G70: =VLOOKUP(E70,Costellazioni!A:E,2,FALSE) -> Australe | H70: =VLOOKUP(E70,Costellazioni!A:E,3,FALSE) -> 2014-08-14 | I70: =VLOOKUP(E70,Costellazioni!A:E,4,FALSE) -> Estate | J70: 20 x 13 | K70: 19 09 | L70: - 63 51
A71: C12 | B71: NGC 6946 | D71: Galassia spirale | E71: Cigno | F71: 8.9 | G71: =VLOOKUP(E71,Costellazioni!A:E,2,FALSE) -> Boreale | H71: =VLOOKUP(E71,Costellazioni!A:E,3,FALSE) -> 2014-08-20 | I71: =VLOOKUP(E71,Costellazioni!A:E,4,FALSE) -> Estate | J71: 11 x 10 | K71: 20 34 | L71: + 60 09
A72: C15 | B72: NGC 6826 | C72: NEBULOSA OCCHIOLINO | D72: Nebulosa planetaria | E72: Cigno | F72: 8.8 | G72: =VLOOKUP(E72,Costellazioni!A:E,2,FALSE) -> Boreale | H72: =VLOOKUP(E72,Costellazioni!A:E,3,FALSE) -> 2014-08-20 | I72: =VLOOKUP(E72,Costellazioni!A:E,4,FALSE) -> Estate | J72: 27 x 24 | K72: 19 44 | L72: + 50 31
A73: C19 | B73: IC 5146 | C73: COCOON NEBULA | D73: Nebulosa diffusa | E73: Cigno | F73: 10 | G73: =VLOOKUP(E73,Costellazioni!A:E,2,FALSE) -> Boreale | H73: =VLOOKUP(E73,Costellazioni!A:E,3,FALSE) -> 2014-08-20 | I73: =VLOOKUP(E73,Costellazioni!A:E,4,FALSE) -> Estate | J73: 30 | K73: 21 53 | L73: + 47 16
A74: C20 | B74: NGC 7000 | C74: NEBULOSA NORD AMERICA | D74: Nebulosa a emissione | E74: Cigno | F74: 6.0 | G74: =VLOOKUP(E74,Costellazioni!A:E,2,FALSE) -> Boreale | H74: =VLOOKUP(E74,Costellazioni!A:E,3,FALSE) -> 2014-08-20 | I74: =VLOOKUP(E74,Costellazioni!A:E,4,FALSE) -> Estate | J74: 240 | K74: 21 59 | L74: + 44 31
A75: C27 | B75: NGC 6888 | C75: NEBULOSA CRESCENTE | D75: Resto di supernova | E75: Cigno | F75: 10.0 | G75: =VLOOKUP(E75,Costellazioni!A:E,2,FALSE) -> Boreale | H75: =VLOOKUP(E75,Costellazioni!A:E,3,FALSE) -> 2014-08-20 | I75: =VLOOKUP(E75,Costellazioni!A:E,4,FALSE) -> Estate | J75: 20 x 10 | K75: 20 12 | L75: + 38 21
A76: C33 | B76: NGC 6992/5 | C76: CIRRUS NEBULA | D76: Resto di supernova | E76: Cigno | F76: 7.0 | G76: =VLOOKUP(E76,Costellazioni!A:E,2,FALSE) -> Boreale | H76: =VLOOKUP(E76,Costellazioni!A:E,3,FALSE) -> 2014-08-20 | I76: =VLOOKUP(E76,Costellazioni!A:E,4,FALSE) -> Estate | J76: 3 | K76: 20 45 | L76: + 30 42
A77: C34 | B77: NGC 6960 | C77: WESTERN VEIL | D77: Resto di supernova | E77: Cigno | F77: 7.0 | G77: =VLOOKUP(E77,Costellazioni!A:E,2,FALSE) -> Boreale | H77: =VLOOKUP(E77,Costellazioni!A:E,3,FALSE) -> 2014-08-20 | I77: =VLOOKUP(E77,Costellazioni!A:E,4,FALSE) -> Estate | J77: 3 | K77: 20 45 | L77: + 30 42
A78: C42 | B78: NGC 7006 | C78: VERY DISTANT GLOBULAR | D78: Ammasso globulare | E78: Delfino | F78: 10.6 | G78: =VLOOKUP(E78,Costellazioni!A:E,2,FALSE) -> Equatoriale | H78: =VLOOKUP(E78,Costellazioni!A:E,3,FALSE) -> 2014-08-31 | I78: =VLOOKUP(E78,Costellazioni!A:E,4,FALSE) -> Estate | J78: 2.8 | K78: 21 10 | L78: + 16 11
A79: C47 | B79: NGC 6934 | D79: Ammasso globulare | E79: Delfino | F79: 9.8 | G79: =VLOOKUP(E79,Costellazioni!A:E,2,FALSE) -> Equatoriale | H79: =VLOOKUP(E79,Costellazioni!A:E,3,FALSE) -> 2014-08-31 | I79: =VLOOKUP(E79,Costellazioni!A:E,4,FALSE) -> Estate | J79: 8.4 | K79: 20 34 | L79: + 07 24
A80: C16 | B80: NGC 7243 | D80: Ammasso aperto | E80: Lucertola | F80: 6.4 | G80: =VLOOKUP(E80,Costellazioni!A:E,2,FALSE) -> Boreale | H80: =VLOOKUP(E80,Costellazioni!A:E,3,FALSE) -> 2014-09-25 | I80: =VLOOKUP(E80,Costellazioni!A:E,4,FALSE) -> Autunno | J80: 21.0 | K80: 22 15 | L80: + 49 54
A81: C55 | B81: NGC 7009 | C81: NEBULOSA SATURNO | D81: Nebulosa planetaria | E81: Acquario | F81: 12.8 | G81: =VLOOKUP(E81,Costellazioni!A:E,2,FALSE) -> Equatoriale | H81: =VLOOKUP(E81,Costellazioni!A:E,3,FALSE) -> 2014-09-25 | I81: =VLOOKUP(E81,Costellazioni!A:E,4,FALSE) -> Autunno | J81: 25 | K81: 21 04 | L81: - 11 21
A82: C63 | B82: NGC 7293 | C82: NEBULOSA ELICA | D82: Nebulosa planetaria | E82: Acquario | F82: 13.51 | G82: =VLOOKUP(E82,Costellazioni!A:E,2,FALSE) -> Equatoriale | H82: =VLOOKUP(E82,Costellazioni!A:E,3,FALSE) -> 2014-09-25 | I82: =VLOOKUP(E82,Costellazioni!A:E,4,FALSE) -> Autunno | J82: 25 | K82: 22 29 | L82: - 20 50
A83: C30 | B83: NGC 7331 | D83: Galassia spirale | E83: Pegaso | F83: 10.4 | G83: =VLOOKUP(E83,Costellazioni!A:E,2,FALSE) -> Equatoriale | H83: =VLOOKUP(E83,Costellazioni!A:E,3,FALSE) -> 2014-10-01 | I83: =VLOOKUP(E83,Costellazioni!A:E,4,FALSE) -> Autunno | J83: 10.5 x 3.7 | K83: 22 37 | L83: + 37 24
A84: C43 | B84: NGC 7814 | D84: Galassia spirale | E84: Pegaso | F84: 11.8 | G84: =VLOOKUP(E84,Costellazioni!A:E,2,FALSE) -> Equatoriale | H84: =VLOOKUP(E84,Costellazioni!A:E,3,FALSE) -> 2014-10-01 | I84: =VLOOKUP(E84,Costellazioni!A:E,4,FALSE) -> Autunno | J84: 5.5 x 2.3 | K84: 00 03 | L84: + 12 80
A85: C44 | B85: NGC 7479 | D85: Galassia spirale barrata | E85: Pegaso | F85: 11.6 | G85: =VLOOKUP(E85,Costellazioni!A:E,2,FALSE) -> Equatoriale | H85: =VLOOKUP(E85,Costellazioni!A:E,3,FALSE) -> 2014-10-01 | I85: =VLOOKUP(E85,Costellazioni!A:E,4,FALSE) -> Autunno | J85: 4.1 x 3.1 | K85: 23 04 | L85: + 12 19
A86: C104 | B86: NGC 362 | D86: Ammasso globulare | E86: Tucano | F86: 6.8 | G86: =VLOOKUP(E86,Costellazioni!A:E,2,FALSE) -> Australe | H86: =VLOOKUP(E86,Costellazioni!A:E,3,FALSE) -> 2014-10-16 | I86: =VLOOKUP(E86,Costellazioni!A:E,4,FALSE) -> Autunno | J86: 14 | K86: 01 03 | L86: - 70 51
A87: C106 | B87: NGC 104 | C87: TUCANAE | D87: Ammasso globulare | E87: Tucano | F87: 4.9 | G87: =VLOOKUP(E87,Costellazioni!A:E,2,FALSE) -> Australe | H87: =VLOOKUP(E87,Costellazioni!A:E,3,FALSE) -> 2014-10-16 | I87: =VLOOKUP(E87,Costellazioni!A:E,4,FALSE) -> Autunno | J87: 60 | K87: 00 24 | L87: - 72 24
A88: C65 | B88: NGC 253 | C88: GALASSIA DELLO SCULTORE | D88: Galassia irregolare | E88: Scultore | F88: 7.8 | G88: =VLOOKUP(E88,Costellazioni!A:E,2,FALSE) -> Australe | H88: =VLOOKUP(E88,Costellazioni!A:E,3,FALSE) -> 2014-10-25 | I88: =VLOOKUP(E88,Costellazioni!A:E,4,FALSE) -> Autunno | J88: 27.5 x 6.8 | K88: 00 47 | L88: -2517
A89: C70 | B89: NGC 300 | D89: Galassia spirale | E89: Scultore | F89: 8.3 | G89: =VLOOKUP(E89,Costellazioni!A:E,2,FALSE) -> Australe | H89: =VLOOKUP(E89,Costellazioni!A:E,3,FALSE) -> 2014-10-25 | I89: =VLOOKUP(E89,Costellazioni!A:E,4,FALSE) -> Autunno | J89: 21.9 x 15.5 | K89: 00 54 | L89: - 37 41
A90: C72 | B90: NGC 55 | D90: Galassia irregolare | E90: Scultore | F90: 8.3 | G90: =VLOOKUP(E90,Costellazioni!A:E,2,FALSE) -> Australe | H90: =VLOOKUP(E90,Costellazioni!A:E,3,FALSE) -> 2014-10-25 | I90: =VLOOKUP(E90,Costellazioni!A:E,4,FALSE) -> Autunno | J90: 32.4 x 5.6 | K90: 00 51 | L90: - 39 13
A91: C1 | B91: NGC 188 | D91: Ammasso aperto | E91: Cefeo | F91: 8.1 | G91: =VLOOKUP(E91,Costellazioni!A:E,2,FALSE) -> Boreale | H91: =VLOOKUP(E91,Costellazioni!A:E,3,FALSE) -> 2014-10-29 | I91: =VLOOKUP(E91,Costellazioni!A:E,4,FALSE) -> Autunno | J91: 13.1 | K91: 00 37 | L91: + 85 14
A92: C2 | B92: NGC 40 | D92: Nebulosa planetaria | E92: Cefeo | F92: 12.3 | G92: =VLOOKUP(E92,Costellazioni!A:E,2,FALSE) -> Boreale | H92: =VLOOKUP(E92,Costellazioni!A:E,3,FALSE) -> 2014-10-29 | I92: =VLOOKUP(E92,Costellazioni!A:E,4,FALSE) -> Autunno | J92: 11 x 35 | K92: 00 13 | L92: + 72 31
A93: C4 | B93: NGC 7023 | C93: NEBULOSA IRIDE | D93: Nebulosa | E93: Cefeo | F93: 7.7 | G93: =VLOOKUP(E93,Costellazioni!A:E,2,FALSE) -> Boreale | H93: =VLOOKUP(E93,Costellazioni!A:E,3,FALSE) -> 2014-10-29 | I93: =VLOOKUP(E93,Costellazioni!A:E,4,FALSE) -> Autunno | J93: 10 x 8 | K93: 21 00 | L93: + 68 10
A94: C9 | B94: SH2-155 | C94: NEBULOSA GROTTA | D94: Nebulosa | E94: Cefeo | F94: 10 | G94: =VLOOKUP(E94,Costellazioni!A:E,2,FALSE) -> Boreale | H94: =VLOOKUP(E94,Costellazioni!A:E,3,FALSE) -> 2014-10-29 | I94: =VLOOKUP(E94,Costellazioni!A:E,4,FALSE) -> Autunno | J94: 50 x 30 | K94: 22 57 | L94: + 62 28
A95: C8 | B95: NGC 559 | D95: Ammasso aperto | E95: Cassiopea | F95: 9.5 | G95: =VLOOKUP(E95,Costellazioni!A:E,2,FALSE) -> Boreale | H95: =VLOOKUP(E95,Costellazioni!A:E,3,FALSE) -> 2014-11-09 | I95: =VLOOKUP(E95,Costellazioni!A:E,4,FALSE) -> Autunno | J95: 4.4 | K95: 21 29 | L95: + 63 18
A96: C10 | B96: NGC 663 | D96: Ammasso aperto | E96: Cassiopea | F96: 7.1 | G96: =VLOOKUP(E96,Costellazioni!A:E,2,FALSE) -> Boreale | H96: =VLOOKUP(E96,Costellazioni!A:E,3,FALSE) -> 2014-11-09 | I96: =VLOOKUP(E96,Costellazioni!A:E,4,FALSE) -> Autunno | J96: 16.0 | K96: 01 46 | L96: + 61 13
A97: C11 | B97: NGC 7635 | C97: NEBULOSA BOLLA | D97: Nebulosa a emissione | E97: Cassiopea | F97: 11 | G97: =VLOOKUP(E97,Costellazioni!A:E,2,FALSE) -> Boreale | H97: =VLOOKUP(E97,Costellazioni!A:E,3,FALSE) -> 2014-11-09 | I97: =VLOOKUP(E97,Costellazioni!A:E,4,FALSE) -> Autunno | J97: 15 x 8 | K97: 23 20 | L97: + 61 12
A98: C13 | B98: NGC 457 | C98: AMMASSO CIVETTA | D98: Ammasso aperto | E98: Cassiopea | F98: 6.4 | G98: =VLOOKUP(E98,Costellazioni!A:E,2,FALSE) -> Boreale | H98: =VLOOKUP(E98,Costellazioni!A:E,3,FALSE) -> 2014-11-09 | I98: =VLOOKUP(E98,Costellazioni!A:E,4,FALSE) -> Autunno | J98: 13 | K98: 01 19 | L98: + 58 17
A99: C17 | B99: NGC 147 | D99: Galassia nana sferoidale | E99: Cassiopea | F99: 9.5 | G99: =VLOOKUP(E99,Costellazioni!A:E,2,FALSE) -> Boreale | H99: =VLOOKUP(E99,Costellazioni!A:E,3,FALSE) -> 2014-11-09 | I99: =VLOOKUP(E99,Costellazioni!A:E,4,FALSE) -> Autunno | J99: 15 x 9 | K99: 00 33 | L99: + 48 31
A100: C18 | B100: NGC 185 | D100: Galassia ellittica | E100: Cassiopea | F100: 9.2 | G100: =VLOOKUP(E100,Costellazioni!A:E,2,FALSE) -> Boreale | H100: =VLOOKUP(E100,Costellazioni!A:E,3,FALSE) -> 2014-11-09 | I100: =VLOOKUP(E100,Costellazioni!A:E,4,FALSE) -> Autunno | J100: 14 x 12 | K100: 00 39 | L100: + 48 20
A101: C22 | B101: NGC 7662 | D101: Nebulosa planetaria | E101: Andromeda | F101: 8.3 | G101: =VLOOKUP(E101,Costellazioni!A:E,2,FALSE) -> Boreale | H101: =VLOOKUP(E101,Costellazioni!A:E,3,FALSE) -> 2014-11-10 | I101: =VLOOKUP(E101,Costellazioni!A:E,4,FALSE) -> Autunno | J101: 32 x 28 | K101: 23 25 | L101: + 42 36
A102: C23 | B102: NGC 891 | D102: Galassia spirale | E102: Andromeda | F102: 10 | G102: =VLOOKUP(E102,Costellazioni!A:E,2,FALSE) -> Boreale | H102: =VLOOKUP(E102,Costellazioni!A:E,3,FALSE) -> 2014-11-10 | I102: =VLOOKUP(E102,Costellazioni!A:E,4,FALSE) -> Autunno | J102: 13.5 x 2.5 | K102: 02 22 | L102: + 42 21
A103: C28 | B103: NGC 752 | D103: Ammasso aperto | E103: Andromeda | F103: 5.7 | G103: =VLOOKUP(E103,Costellazioni!A:E,2,FALSE) -> Boreale | H103: =VLOOKUP(E103,Costellazioni!A:E,3,FALSE) -> 2014-11-10 | I103: =VLOOKUP(E103,Costellazioni!A:E,4,FALSE) -> Autunno | J103: 50.1 | K103: 01 57 | L103: + 37 51
A104: C51 | B104: IC 1613 | D104: Galassia irregolare | E104: Balena | F104: 9.9 | G104: =VLOOKUP(E104,Costellazioni!A:E,2,FALSE) -> Equatoriale | H104: =VLOOKUP(E104,Costellazioni!A:E,3,FALSE) -> 2014-11-10 | I104: =VLOOKUP(E104,Costellazioni!A:E,4,FALSE) -> Autunno | J104: 16.2 x 14.5 | K104: 01 04 | L104: + 02 07
A105: C56 | B105: NGC 246 | D105: Nebulosa planetaria | E105: Balena | F105: 10.9 | G105: =VLOOKUP(E105,Costellazioni!A:E,2,FALSE) -> Equatoriale | H105: =VLOOKUP(E105,Costellazioni!A:E,3,FALSE) -> 2014-11-10 | I105: =VLOOKUP(E105,Costellazioni!A:E,4,FALSE) -> Autunno | J105: 4.6 x 4.1 | K105: 00 47 | L105: - 11 52
A106: C62 | B106: NGC 247 | D106: Galassia spirale | E106: Balena | F106: 9.2 | G106: =VLOOKUP(E106,Costellazioni!A:E,2,FALSE) -> Equatoriale | H106: =VLOOKUP(E106,Costellazioni!A:E,3,FALSE) -> 2014-11-10 | I106: =VLOOKUP(E106,Costellazioni!A:E,4,FALSE) -> Autunno | J106: 21.4 x 6.9 | K106: 00 47 | L106: - 20 46
A107: C67 | B107: NGC 1097 | D107: Galassia spirale barrata | E107: Fornace | F107: 10.2 | G107: =VLOOKUP(E107,Costellazioni!A:E,2,FALSE) -> Australe | H107: =VLOOKUP(E107,Costellazioni!A:E,3,FALSE) -> 2014-12-02 | I107: =VLOOKUP(E107,Costellazioni!A:E,4,FALSE) -> Autunno | J107: 9.3 x 6.3 | K107: 02 46 | L107: - 30 16
A108: C14 | B108: NGC 869 | C108: DOPPIO AMMASSO | D108: Ammasso aperto | E108: Perseo | F108: 4.3 | G108: =VLOOKUP(E108,Costellazioni!A:E,2,FALSE) -> Boreale | H108: =VLOOKUP(E108,Costellazioni!A:E,3,FALSE) -> 2014-12-10 | I108: =VLOOKUP(E108,Costellazioni!A:E,4,FALSE) -> Autunno | J108: 30 | K108: 02 19 | L108: + 57 09
A109: C24 | B109: NGC 1275 | C109: PERSEUS A | D109: Galassia peculiare | E109: Perseo | F109: 11.9 | G109: =VLOOKUP(E109,Costellazioni!A:E,2,FALSE) -> Boreale | H109: =VLOOKUP(E109,Costellazioni!A:E,3,FALSE) -> 2014-12-10 | I109: =VLOOKUP(E109,Costellazioni!A:E,4,FALSE) -> Autunno | J109: 2.2 x 1.7 | K109: 03 19 | L109: + 41 29
A110: C87 | B110: NGC 1261 | D110: Ammasso globulare | E110: Orologio | F110: 8.3 | G110: =VLOOKUP(E110,Costellazioni!A:E,2,FALSE) -> Australe | H110: =VLOOKUP(E110,Costellazioni!A:E,3,FALSE) -> 2014-12-10 | I110: =VLOOKUP(E110,Costellazioni!A:E,4,FALSE) -> Autunno | J110: 6.8 x 6.8 | K110: 03 01 | L110: - 55 13

Sheet CDD
A1: Camere CCD | B1: Sensore | C1: Tipo | D1: Form | E1: HS | F1: VS | G1: Risoluzione | H1: HP | I1: VP
A2: AstroLumina Alccd 5.2, QHY6 | B2: Sony ICX259AL | C2: CCD | D2: 1/3" | E2: 4.89 | F2: 3.64 | G2: 752 x 582 | H2: 6.5 | I2: 6.25
A3: AstroLumina ALccd 6C/6Pro | B3: Sony ICX453AQ | C3: CCD | D3: 1.8" | E3: 23.65 | F3: 15.72 | G3: 3032 x 2016 | H3: 7.8 | I3: 7.8
A4: Atik 16 | B4: Sony ICX429AKL[AL/ALL] | C4: CCD | D4: 1/2" | E4: 6.47 | F4: 4.83 | G4: 752 x 582 | H4: 8.6 | I4: 8.3
A5: Atik 16HR | B5: Sony ICX285AL[AQ] | C5: CCD | D5: 2/3" | E5: 8.97 | F5: 6.71 | G5: 1390 x 1040 | H5: 6.45 | I5: 6.45
A6: Atik 16IC | B6: Sony ICX424AL | C6: CCD | D6: 1/3" | E6: 4.88 | F6: 3.66 | G6: 659 x 494 | H6: 7.4 | I6: 7.4
A7: Atik 16IC-S | B7: Sony ICX415AL | C7: CCD | D7: 1/2" | E7: 6.49 | F7: 4.3 | G7: 782 x 582 | H7: 8.3 | I7: 8.3
A8: Atik 314E/EC | B8: Sony ICX205AK[AL] | C8: CCD | D8: 1/2" | E8: 5.95 | F8: 4.46 | G8: 1280 x 960 | H8: 4.65 | I8: 4.65
A9: Atik 314L/L+/LC+ | B9: Sony ICX285AL[AQ] | C9: CCD | D9: 2/3" | E9: 8.97 | F9: 6.71 | G9: 1390 x 1040 | H9: 6.45 | I9: 6.45
A10: Atik 383L+ | B10: Kodak KAF-8300 | C10: CCD | D10: 4/3" | E10: 18.13 | F10: 13.69 | G10: 3358 x 2536 | H10: 5.4 | I10: 5.4
A11: Atik Titan | B11: Sony ICX424AL | C11: CCD | D11: 1/3" | E11: 4.88 | F11: 3.66 | G11: 659 x 494 | H11: 7.4 | I11: 7.4
A12: Celestron Neximage | B12: Sony ICX098AK[BQ/AL] | C12: CCD | D12: 1/4" | E12: 3.58 | F12: 2.67 | G12: 640 x 480 | H12: 5.6 | I12: 5.6
A13: Imaging Source DMK/DFK/DBK 21AU04.AS | B13: Sony ICX098AK[BQ/AL] | C13: CCD | D13: 1/4" | E13: 3.58 | F13: 2.67 | G13: 640 x 480 | H13: 5.6 | I13: 5.6
A14: Imaging Source DMK/DFK/DBK 21AU618.AS | B14: Sony ICX618ALA | C14: CCD | D14: 1/4" | E14: 4.46 | F14: 3.8 | G14: 640 x 480 | H14: 5.6 | I14: 5.6
A15: Imaging Source DMK/DFK/DBK 31AU03.AS | B15: Sony ICX204AK[AL] | C15: CCD | D15: 1/3" | E15: 4.76 | F15: 3.57 | G15: 1024 x 768 | H15: 4.65 | I15: 4.65
A16: Imaging Source DMK/DFK/DBK 41AU02.AS | B16: Sony ICX205AK[AL] | C16: CCD | D16: 1/2" | E16: 5.95 | F16: 4.46 | G16: 1280 x 960 | H16: 4.65 | I16: 4.65
A17: Imaging Source DMK/DFK/DBK 51AU02.AS | B17: Sony ICX274AQ | C17: CCD | D17: 1/1.8" | E17: 8.5 | F17: 6.8 | G17: 1600 x 1200 | H17: 4.4 | I17: 4.4
A18: I-Tec iCam CCD | B18: Sony ICX098AK[BQ/AL] | C18: CCD | D18: 1/4" | E18: 3.58 | F18: 2.67 | G18: 640 x 480 | H18: 5.6 | I18: 5.6
A19: Magzero I-Nova PLA-C+ | B19: Sony ICX098BQ | C19: CCD | D19: 1/4" | E19: 3.58 | F19: 2.67 | G19: 640 x 480 | H19: 5.6 | I19: 5.6
A20: Magzero I-Nova PLA-Mx | B20: Sony ICX618ALA | C20: CCD | D20: 1/4" | E20: 4.46 | F20: 3.8 | G20: 640 x 480 | H20: 5.6 | I20: 5.6
A21: Magzero I-Nova PLB-C2 | B21: Sony ICX204AK[AL] | C21: CCD | D21: 1/3" | E21: 4.76 | F21: 3.57 | G21: 1024 x 768 | H21: 4.65 | I21: 4.65
A22: Magzero I-Nova PLB-Mx | B22: Sony ICX445ALA | C22: CCD | D22: 1/3" | E22: 4.83 | F22: 3.63 | G22: 1280 x 960 | H22: 3.75 | I22: 3.75
A23: Magzero MZ-2PRO | B23: Sony ICX285AL[AQ] | C23: CCD | D23: 2/3" | E23: 8.97 | F23: 6.71 | G23: 1390 x 1040 | H23: 6.45 | I23: 6.45
A24: Magzero MZ-9 | B24: Kodak KAF-8300 | C24: CCD | D24: 4/3" | E24: 18.13 | F24: 13.69 | G24: 3358 x 2536 | H24: 5.4 | I24: 5.4
A25: Magzero QHY8L/MZ-8i/MZ8PRO | B25: Sony ICX453AQ | C25: CCD | D25: 1.8" | E25: 23.65 | F25: 15.72 | G25: 3032 x 2016 | H25: 7.8 | I25: 7.8
A26: Meade DSI II, DSI Pro II | B26: Sony ICX429AKL[AL/ALL] | C26: CCD | D26: 1/2" | E26: 6.47 | F26: 4.83 | G26: 752 x 582 | H26: 8.6 | I26: 8.3
A27: Meade DSI III/PRO | B27: Sony ICX285AL[AQ] | C27: CCD | D27: 2/3" | E27: 8.97 | F27: 6.71 | G27: 1390 x 1040 | H27: 6.45 | I27: 6.45
A28: Orion Starshoot II | B28: Sony ICX429AKL[AL/ALL] | C28: CCD | D28: 1/2" | E28: 6.47 | F28: 4.83 | G28: 752 x 582 | H28: 8.6 | I28: 8.3
A29: Orion Starshoot Pro 6mp V2 (da verificare) | B29: Sony ICX453AQ | C29: CCD | D29: 1.8" | E29: 23.65 | F29: 15.72 | G29: 3032 x 2016 | H29: 7.8 | I29: 7.8
A30: PGR Chameleon | B30: Sony ICX445AKA | C30: CCD | D30: 1/3" | E30: 4.86 | F30: 3.62 | G30: 1296 x 964 | H30: 3.75 | I30: 3.75
A31: Philips Vesta/Toucam/SPC900 | B31: Sony ICX098AK[BQ/AL] | C31: CCD | D31: 1/4" | E31: 3.58 | F31: 2.67 | G31: 640 x 480 | H31: 5.6 | I31: 5.6
A32: sac-10, Opticstar DS-335C/ICE | B32: Sony ICX262AQ | C32: CCD | D32: 1/1.8" | E32: 7.38 | F32: 5.38 | G32: 2140 x 1560 | H32: 3.45 | I32: 3.45
A33: Sbig ST-I | B33: Kodak KAI-340 | C33: CCD | D33: 1/3" | E33: 4.736 | F33: 3.552 | G33: 648 x 484 | H33: 7.4 | I33: 7.4
A34: Starlight Xpress Lodestar | B34: Sony ICX429AL | C34: CCD | D34: 1/2" | E34: 6.47 | F34: 4.83 | G34: 751 x 582 | H34: 8.6 | I34: 8.3
A35: Starlight Xpress Lodestar X2 | B35: Sony ICX829AL | C35: CCD | D35: 1/2" | E35: 6.4 | F35: 4.5 | G35: 752 x 582 | H35: 8.6 | I35: 8.3
A36: Starlight Xpress MX716/MX7C | B36: Sony ICX249AK[AL] | C36: CCD | D36: 1/2" | E36: 6.73 | F36: 4.3 | G36: 782 x 582 | H36: 8.6 | I36: 8.3
A37: Starlight Xpress SXVF-H9/H9C | B37: Kodak KAF-8300 | C37: CCD | D37: 4/3" | E37: 18.13 | F37: 13.69 | G37: 3358 x 2536 | H37: 5.4 | I37: 5.4
A38: Starlight Xpress SXVF-M7. | B38: Sony ICX429AKL[AL/ALL] | C38: CCD | D38: 1/2" | E38: 6.47 | F38: 4.83 | G38: 752 x 582 | H38: 8.6 | I38: 8.3
A39: Starlight Xpress SXVF-M8C | B39: Sony ICX406AQ | C39: CCD | D39: 1/1.8" | E39: 7.17 | F39: 5.43 | G39: 2312 x 1750 | H39: 3.1 | I39: 3.1
A40: TS TSSSI | B40: Sony ICX098AK[BQ/AL] | C40: CCD | D40: 1/4" | E40: 3.58 | F40: 2.67 | G40: 640 x 480 | H40: 5.6 | I40: 5.6
A41: TS TSWCIR | B41: Sony ICX098AK[BQ/AL] | C41: CCD | D41: 1/4" | E41: 3.58 | F41: 2.67 | G41: 640 x 480 | H41: 5.6 | I41: 5.6
A42: ASI034MC | B42: ASX340CS | C42: CMOS | D42: 1/4" | E42: 4.01 | F42: 2.87 | G42: 728 X 512 | H42: 5.6 | I42: 5.6
A43: ASI120MM | B43: Aptina MT9M034 | C43: CMOS | D43: 1/3" | E43: 4.83 | F43: 3.63 | G43: 1280 x 960 | H43: 3.75 | I43: 3.75
A44: Astrolumina AL CCD 5 | B44: Micron MT9M001 | C44: CMOS | D44: 1/2" | E44: 6.66 | F44: 5.32 | G44: 1280 x 1024 | H44: 5.2 | I44: 5.2
A45: Fishcamp Starfish | B45: Micron MT9M001 | C45: CMOS | D45: 1/2" | E45: 6.66 | F45: 5.32 | G45: 1280 x 1024 | H45: 5.2 | I45: 5.2
A46: Magzero MZ5 m/c | B46: Micron MT9M001 | C46: CMOS | D46: 1/2" | E46: 6.66 | F46: 5.32 | G46: 1280 x 1024 | H46: 5.2 | I46: 5.2
A47: Magzero MZ5c PLUS | B47: Micron MT9T001 | C47: CMOS | D47: 1/2" | E47: 6.55 | F47: 4.92 | G47: 2048 x 1536 | H47: 3.2 | I47: 3.2
A48: Orion SSSCI3 | B48: Micron MT9M001 | C48: CMOS | D48: 1/2" | E48: 6.66 | F48: 5.32 | G48: 1280 x 1024 | H48: 5.2 | I48: 5.2
A49: Orion StarShoot Autoguider | B49: Micron MT9M001 | C49: CMOS | D49: 1/2" | E49: 6.66 | F49: 5.32 | G49: 1280 x 1024 | H49: 5.2 | I49: 5.2
A50: Pentaflex TEM-1300 | B50: Micron MT9M001 | C50: CMOS | D50: 1/2" | E50: 6.66 | F50: 5.32 | G50: 1280 x 1024 | H50: 5.2 | I50: 5.2
A51: QHY5L II | B51: Aptina MT9M034 | C51: CMOS | D51: 1/3" | E51: 4.83 | F51: 3.63 | G51: 1280 x 960 | H51: 3.75 | I51: 3.75
A52: TS TSAstroWC | B52: Micron MT9M001 | C52: CMOS | D52: 1/2" | E52: 6.66 | F52: 5.32 | G52: 1280 x 1024 | H52: 5.2 | I52: 5.2
A53: Canon 1000D/Rebel XS | B53: Canon 1000D | C53: DSLR | D53: APSC | E53: 22.2 | F53: 14.8 | G53: 3888 x 2592 | H53: 5.71 | I53: 5.71
A54: Canon 1D MK4 | B54: Canon 1D MK4 | C54: DSLR | D54: APSH | E54: 27.9 | F54: 18.6 | G54: 4896 x 3264 | H54: 5.7 | I54: 5.7
A55: Canon 350D/Rebel XT | B55: Canon 350D | C55: DSLR | D55: APSC | E55: 22.2 | F55: 14.8 | G55: 3456 x 2304 | H55: 6.42 | I55: 6.42
A56: Canon 400D/Rebel XTi | B56: Canon 400D | C56: DSLR | D56: APSC | E56: 22.2 | F56: 14.8 | G56: 3888 x 2592 | H56: 5.71 | I56: 5.71
A57: Canon 450D/Rebel XSi | B57: Canon 450D | C57: DSLR | D57: APSC | E57: 22.2 | F57: 14.8 | G57: 4272 x 2848 | H57: 5.2 | I57: 5.2
A58: Canon 500D/Rebel T1i | B58: Canon 500D | C58: DSLR | D58: APSC | E58: 22.2 | F58: 14.8 | G58: 4752 x 3168 | H58: 4.67 | I58: 4.67
A59: Canon 50D | B59: Canon 50D | C59: DSLR | D59: APSC | E59: 22.2 | F59: 14.8 | G59: 4752 x 3168 | H59: 4.67 | I59: 4.67
A60: Canon 550D/Rebel T2i | B60: Canon 550D | C60: DSLR | D60: APSC | E60: 22.2 | F60: 14.8 | G60: 5184 x 3456 | H60: 4.28 | I60: 4.28
A61: Canon 5D MK2 | B61: Canon 5D MK2 | C61: DSLR | D61: FF | E61: 36 | F61: 24 | G61: 5616 x 3744 | H61: 6.4 | I61: 6.4
A62: Canon 6D | B62: Canon 6D | C62: DSLR | D62: FF | E62: 36 | F62: 24 | G62: 5472 x 3648 | H62: 6.55 | I62: 6.55
A63: Nikon D3000 | B63: Nikon D3000 | C63: DSLR | D63: DXN | E63: 23.6 | F63: 15.8 | G63: 3872 x 2592 | H63: 6.09 | I63: 6.09
A64: Nikon D5000 | B64: Nikon D5000 | C64: DSLR | D64: DXN | E64: 23.6 | F64: 15.8 | G64: 4288 x 2848 | H64: 5.5 | I64: 5.5

Sheet Costellazioni (hidden)
A1: COSTELLAZIONE | B1: TIPO | C1: CULMINAZIONE | D1: STAGIONE | E1: STELLA DI RIFERIMENTO
A2: Acquario | B2: Equatoriale | C2: 2014-09-25 | D2: =IF(AND(C2>=41719,C2<41811),"Primavera",IF(AND(C2>=41811,C2<41905),"Estate",IF(AND(C2>=41905,C2<41994),"Autunno",IF(OR(C2<41719,C2>=41994),"Inverno")))) -> Autunno | E2: Sadalmelik
A3: Altare | B3: Australe | C3: 2014-06-10 | D3: Primavera
A4: Andromeda | B4: Boreale | C4: 2014-11-10 | D4: Autunno | E4: Alpheratz o Sirrah
A5: Aquila | B5: Equatoriale | C5: 2014-08-15 | D5: Estate | E5: Altair
A6: Ariete | B6: Equatoriale | C6: 2014-11-30 | D6: Autunno | E6: Hamal
A7: Auriga | B7: Boreale | C7: 2014-01-20 | D7: Inverno | E7: Capella
A8: Balena | B8: Equatoriale | C8: 2014-11-10 | D8: Autunno | E8: Menkar, Deneb Kaitos
A9: Bilancia | B9: Equatoriale | C9: 2014-06-10 | D9: Primavera | E9: Zuben Elgenubi
A10: Boote | B10: Equatoriale | C10: 2014-06-02 | D10: Primavera | E10: Arturo
A11: Bulino | B11: Australe | C11: 2014-11-30 | D11: Autunno
A12: Bussola | B12: Australe | C12: 2014-03-06 | D12: Inverno
A13: Camaleonte | B13: Australe | C13: 2014-03-30 | D13: Primavera
A14: Cancro | B14: Equatoriale | C14: 2014-02-28 | D14: Inverno | E14: Acubens
A15: Cane Maggiore | B15: Equatoriale | C15: 2014-02-01 | D15: Inverno | E15: Sirio
A16: Cane Minore | B16: Equatoriale | C16: 2014-02-15 | D16: Inverno | E16: Procione
A17: Cani da Caccia | B17: Boreale | C17: 2014-05-07 | D17: Primavera | E17: Cor Caroli
A18: Capricorno | B18: Equatoriale | C18: 2014-09-08 | D18: Estate | E18: Al Giedi
A19: Carena | B19: Australe | C19: 2014-03-02 | D19: Inverno | E19: Canopo
A20: Cassiopea | B20: Boreale | C20: 2014-11-09 | D20: Autunno | E20: Schedar
A21: Cavallino | B21: Equatoriale | C21: 2014-09-08 | D21: Estate | E21: Kitalpha
A22: Cefeo | B22: Boreale | C22: 2014-10-29 | D22: Autunno | E22: Alderamin
A23: Centauro | B23: Australe | C23: 2014-04-30 | D23: Primavera | E23: Rigel Kentaurus
A24: Chioma di Berenice | B24: Equatoriale | C24: 2014-05-02 | D24: Primavera | E24: Diadema
A25: Cigno | B25: Boreale | C25: 2014-08-20 | D25: Estate | E25: Deneb
A26: Colomba | B26: Australe | C26: 2014-01-16 | D26: Inverno | E26: Phakt
A27: Compasso | B27: Australe | C27: 2014-05-29 | D27: Primavera
A28: Corona Australe | B28: Australe | C28: 2014-07-30 | D28: Estate | E28: Alfecca Meridiana
A29: Corona Boreale | B29: Boreale | C29: 2014-06-19 | D29: Primavera | E29: Gemma
A30: Corvo | B30: Equatoriale | C30: 2014-04-20 | D30: Primavera | E30: Alchiba
A31: Cratere | B31: Equatoriale | C31: 2014-04-20 | D31: Primavera | E31: Alkes
A32: Croce del Sud | B32: Australe | C32: 2014-04-27 | D32: Primavera | E32: Acrux
A33: Delfino | B33: Equatoriale | C33: 2014-08-31 | D33: Estate | E33: Sualocin
A34: Dorado | B34: Australe | C34: 2014-01-16 | D34: =IF(AND(C34>=41719,C34<41811),"Primavera",IF(AND(C34>=41811,C34<41905),"Estate",IF(AND(C34>=41905,C34<41994),"Autunno",IF(OR(C34<41719,C34>=41994),"Inverno")))) -> Inverno
A35: Dragone | B35: Boreale | C35: 2014-05-25 | D35: Primavera | E35: Thuban
A36: Ercole | B36: Boreale | C36: 2014-06-13 | D36: Primavera | E36: Ras Algethi
A37: Eridano | B37: Equatoriale | C37: 2014-12-10 | D37: Autunno | E37: Achernar
A38: Fenice | B38: Australe | C38: 2014-11-03 | D38: Autunno | E38: Ankaa
A39: Fornace | B39: Australe | C39: 2014-12-02 | D39: Autunno
A40: Freccia | B40: Equatoriale | C40: 2014-08-15 | D40: Estate | E40: Sham
A41: Gemelli | B41: Equatoriale | C41: 2014-02-05 | D41: Inverno | E41: Castore, Polluce
A42: Giraffa | B42: Boreale | C42: 2014-01-23 | D42: Inverno
A43: Gru | B43: Australe | C43: 2014-09-28 | D43: Autunno | E43: Al Na’ir
A44: Idra | B44: Equatoriale | C44: 2014-04-15 | D44: Primavera | E44: Alphard
A45: Idra Maschio | B45: Australe | C45: 2014-10-25 | D45: Autunno
A46: Indiano | B46: Australe | C46: 2014-09-11 | D46: Estate
A47: Leone | B47: Equatoriale | C47: 2014-04-01 | D47: Primavera | E47: Regolo
A48: Leone Minore | B48: Boreale | C48: 2014-03-23 | D48: Primavera
A49: Lepre | B49: Equatoriale | C49: 2014-01-15 | D49: Inverno | E49: Arneb
A50: Lince | B50: Boreale | C50: 2014-02-19 | D50: Inverno
A51: Lira | B51: Boreale | C51: 2014-08-01 | D51: Estate | E51: Vega
A52: Lucertola | B52: Boreale | C52: 2014-09-25 | D52: Autunno
A53: Lupo | B53: Australe | C53: 2014-06-08 | D53: Primavera
A54: Macchina Pneumatica | B54: Australe | C54: 2014-03-25 | D54: Primavera
A55: Mensa | B55: Australe | C55: 2014-01-13 | D55: Inverno
A56: Microscopio | B56: Australe | C56: 2014-09-03 | D56: Estate
A57: Mosca | B57: Australe | C57: 2014-04-30 | D57: Primavera
A58: Ofiuco | B58: Equatoriale | C58: 2014-07-10 | D58: Estate | E58: Ras Alhague
A59: Orione | B59: Equatoriale | C59: 2014-01-15 | D59: Inverno | E59: Betelgeuse
A60: Orologio | B60: Australe | C60: 2014-12-10 | D60: Autunno
A61: Orsa Maggiore | B61: Boreale | C61: 2014-04-11 | D61: Primavera | E61: Dubhe
A62: Orsa Minore | B62: Boreale | C62: 2014-06-13 | D62: Primavera | E62: Polare
A63: Ottante | B63: Australe | D63: Inverno
A64: Pavone | B64: Australe | C64: 2014-08-14 | D64: Estate | E64: Peacock
A65: Pegaso | B65: Equatoriale | C65: 2014-10-01 | D65: Autunno | E65: Markab
A66: Perseo | B66: Boreale | C66: 2014-12-10 | D66: =IF(AND(C66>=41719,C66<41811),"Primavera",IF(AND(C66>=41811,C66<41905),"Estate",IF(AND(C66>=41905,C66<41994),"Autunno",IF(OR(C66<41719,C66>=41994),"Inverno")))) -> Autunno | E66: Algenib, Marfak
A67: Pesce Australe | B67: Australe | C67: 2014-09-24 | D67: Autunno | E67: Fomalhaut
A68: Pesce Volante | B68: Australe | C68: 2014-02-17 | D68: Inverno
A69: Pesci | B69: Equatoriale | C69: 2014-10-25 | D69: Autunno | E69: El Rischa
A70: Pittore | B70: Australe | C70: 2014-01-15 | D70: Inverno
A71: Poppa | B71: Australe | C71: 2014-02-17 | D71: Inverno | E71: Naos
A72: Regolo | B72: Australe | C72: 2014-06-18 | D72: Primavera
A73: Reticolo | B73: Australe | C73: 2014-12-18 | D73: Autunno
A74: Sagittario | B74: Equatoriale | C74: 2014-08-10 | D74: Estate | E74: Al Rami o Rukbat
A75: Scorpione | B75: Equatoriale | C75: 2014-07-03 | D75: Estate | E75: Antares
A76: Scudo | B76: Equatoriale | C76: 2014-08-01 | D76: Estate
A77: Scultore | B77: Australe | C77: 2014-10-25 | D77: Autunno
A78: Serpente | B78: Equatoriale | C78: 2014-07-01 | D78: Estate | E78: Unukalhai
A79: Sestante | B79: Equatoriale | C79: 2014-03-22 | D79: Primavera
A80: Telescopio | B80: Australe | C80: 2014-08-09 | D80: Estate
A81: Toro | B81: Equatoriale | C81: 2014-01-01 | D81: Inverno | E81: Aldebaran
A82: Triangolo | B82: Boreale | C82: 2014-11-25 | D82: Autunno | E82: Al Muthallat
A83: Triangolo Australe | B83: Australe | C83: 2014-06-22 | D83: Estate
A84: Tucano | B84: Australe | C84: 2014-10-16 | D84: Autunno
A85: Uccello del Paradiso | B85: Australe | C85: 2014-06-20 | D85: Primavera
A86: Unicorno | B86: Equatoriale | C86: 2014-02-05 | D86: Inverno
A87: Vele | B87: Australe | C87: 2014-03-15 | D87: Inverno
A88: Vergine | B88: Equatoriale | C88: 2014-05-10 | D88: Primavera | E88: Spica
A89: Volpetta | B89: Equatoriale | C89: 2014-08-25 | D89: Estate | E89: Anser

Sheet Telescopi
A1: Modello | B1: Tipo | C1: D | D1: LF | E1: RF
A2: Astro-Tech AT 90EDT, TS TL APO 906T | B2: Rifrattore | C2: 90 | D2: 600 | E2: =D2/C2 -> 6.666666667
A3: Celestron C11 | B3: Smith-Cassegrain | C3: 280 | D3: 2800 | E3: 10
A4: Celestron C6 | B4: Smith-Cassegrain | C4: 150 | D4: 1500 | E4: 10
A5: Celestron C8, Meade 8" | B5: Smith-Cassegrain | C5: 203 | D5: 2032 | E5: 10.00985222
A6: Celestron C9¼ | B6: Smith-Cassegrain | C6: 235 | D6: 2350 | E6: 10
A7: GSO RC 10" | B7: Ritchey-Chrétien | C7: 254 | D7: 2000 | E7: 7.874015748
A8: GSO RC 8" | B8: Ritchey-Chrétien | C8: 203 | D8: 1624 | E8: 8
A9: Guida 50mm (cercatore) | B9: Rifrattore | C9: 50 | D9: 162 | E9: 3.24
A10: Guida 60/228 | B10: Rifrattore | C10: 60 | D10: 228 | E10: 3.8
A11: Guida 80/328 | B11: Rifrattore | C11: 80 | D11: 328 | E11: 4.1
A12: Meade ACF 10" | B12: Smith-Cassegrain | C12: 250 | D12: 2500 | E12: 10
A13: Meade ACF 12" | B13: Smith-Cassegrain | C13: 300 | D13: 3000 | E13: 10
A14: Meade Starfinder 12" | B14: Dobson | C14: 300 | D14: 1500 | E14: 5
A15: Mizar 110mm | B15: Newton | C15: 110 | D15: 720 | E15: 6.545454545
A16: Nikkor Ai-S 200mm F4 | B16: Obbiettivo | C16: 50 | D16: 200 | E16: 4
A17: Pentacon Electric 135mm F2.8 M42 | B17: Obbiettivo | C17: 48 | D17: 135 | E17: 2.8125
A18: Pentacon Six 300mm F4 M42 | B18: Obbiettivo | C18: 75 | D18: 300 | E18: 4
A19: Rifrattore 80/480 | B19: Rifrattore | C19: 80 | D19: 480 | E19: 6
A20: Scopos 66 | B20: Rifrattore | C20: 66 | D20: 400 | E20: 6.060606061
A21: SIMAK ZEN 190/1000 | B21: Maksutov-Cassegrain | C21: 190 | D21: 1000 | E21: 5.263157895
A22: Skywatcher 100ED | B22: Rifrattore | C22: 100 | D22: 900 | E22: 9
A23: Skywatcher 120/1000 | B23: Rifrattore | C23: 120 | D23: 1000 | E23: 8.333333333
A24: Skywatcher 120/600 | B24: Rifrattore | C24: 120 | D24: 600 | E24: 5
A25: Skywatcher 120ED | B25: Rifrattore | C25: 120 | D25: 900 | E25: 7.5
A26: Skywatcher 130mm F5 | B26: Newton | C26: 130 | D26: 650 | E26: 5
A27: Skywatcher 130mm F7 | B27: Newton | C27: 130 | D27: 900 | E27: 6.923076923
A28: Skywatcher 150mm F5 | B28: Newton | C28: 150 | D28: 750 | E28: 5
A29: Skywatcher 200mm F5 | B29: Newton | C29: 200 | D29: 1000 | E29: 5
A30: Skywatcher 200mm F6 | B30: Newton | C30: 200 | D30: 1200 | E30: 6
A31: Skywatcher 250mm F5 | B31: Newton | C31: 250 | D31: 1200 | E31: 4.8
A32: Skywatcher 300mm F6 | B32: Newton | C32: 300 | D32: 1800 | E32: 6
A33: Skywatcher 70/500 | B33: Rifrattore | C33: 70 | D33: 500 | E33: 7.142857143
A34: Skywatcher 80/400 | B34: Rifrattore | C34: 80 | D34: 400 | E34: 5
A35: Skywatcher 80ED | B35: Rifrattore | C35: 80 | D35: 600 | E35: 7.5
A36: Skywatcher MC 127 | B36: Maksutov-Cassegrain | C36: 127 | D36: 1500 | E36: 11.81102362
A37: Skywatcher MC 90 | B37: Maksutov-Cassegrain | C37: 90 | D37: 1250 | E37: 13.88888889
A38: Skywatcher MN190 | B38: Maksutov-Newton | C38: 190 | D38: 1000 | E38: 5.263157895
A39: Super Takumar 55mm F1.8 M42 | B39: Obbiettivo | C39: 30 | D39: 55 | E39: 1.833333333
A40: Vixen 102M | B40: Rifrattore | C40: 102 | D40: 1000 | E40: 9.803921569
A41: Vixen 80L | B41: Rifrattore | C41: 80 | D41: 1200 | E41: 15
A42: Vixen 80M | B42: Rifrattore | C42: 80 | D42: 1000 | E42: 12.5
A43: Vixen 81S | B43: Rifrattore | C43: 81 | D43: 625 | E43: 7.716049383
A44: Vixen 90L | B44: Rifrattore | C44: 90 | D44: 1300 | E44: 14.44444444
A45: Vixen 90M | B45: Rifrattore | C45: 90 | D45: 1000 | E45: 11.11111111
A46: Vixen VMC110L | B46: Maksutov-Cassegrain | C46: 110 | D46: 1035 | E46: 9.409090909
A47: Vixen VMC200L | B47: Maksutov-Cassegrain | C47: 200 | D47: 1950 | E47: 9.75

Sheet Pianeti (hidden)
A1: PIANETA | B1: DISTANZA MEDIA MASSIMA ELONGAZIONE OPPOSIZIONE [Km] | C1: PERIODO DI ROTAZIONE [secondi] | D1: RAGGIO [Km]
A2: Mercurio | B2: =1.2*10^6 -> 1200000 | C2: =5.08*10^6 -> 5080000 | D2: 2440
A3: Venere | B3: =1.03*10^6 -> 1030000 | C3: =2.11*10^7 -> 21100000 | D3: 6050
A4: Marte | B4: =78*10^6 -> 78000000 | C4: =8.9*10^4 -> 89000 | D4: 3400
A5: Giove | B5: =589*10^6 -> 589000000 | C5: =3.58*10^4 -> 35800 | D5: 71500
A6: Saturno | B6: =1195*10^6 -> 1195000000 | C6: =3.84*10^4 -> 38400 | D6: 60270
A7: Urano | B7: =2582*10^6 -> 2582000000 | C7: =6.22*10^4 -> 62200 | D7: 25570
A8: Nettuno | B8: =4306*10^6 -> 4306000000 | C8: =5.81*10^4 -> 58100 | D8: 24750
A9: Sole | B9: =149.6*10^6 -> 149600000 | C9: =2.19*10^6 -> 2190000 | D9: 695000
A10: Luna | B10: =3.84*10^5 -> 384000 | C10: =2.55*10^6 -> 2550000 | D10: 1380
